Workbook

Sheet Vista Principal
B2: Simulador Préstamo Personal Libre Disponibilidad
B7: 1) Establecer los datos del préstamos
B9: Producto | C9: Préstamos Personales (LD )
B10: Tipo de Seguro | C10: Seguro de Desgravamen | I10: Seguro Tasa de Prima Mensual (%) | M10: =IF(C10="Seguro de Vida","",'Proceso Prima de Seguro'!C13) -> 0.006601
B11: Tarifa | C11: TARIFA TITULAR | I11: Costo de Capital Mensual | M11: =Tabla2[CostoCapital] -> 0.002871
B12: MAF Inicial | C12: 5000 | I12: Días Cobertura Seguro | M12: ='Proceso Prima de Seguro'!C19 -> 371
B13: Seguro Desempleo | C13: 0
B14: Monto adicional desempleo | C14: =C13*C12 -> 0
B15: Prima Única (%) del Seguro | C15: =IF(C10="Seguro de vida",'Proceso Prima de Seguro'!C13,'Proceso Prima de Seguro'!H16) -> 0.04906470914
B16: Prima Única (S/) del Seguro | C16: =+C15*C12 -> 245.3235457
B17: MAF Final | C17: =C12+C14+C16 -> 5245.323546
B18: Empleado | C18: =IF(OR(C9="Préstamos Personales (LD Y PA) (Empleados)",C9 = "Préstamos Vehiculares (Empleados)"),"SI","NO") -> NO
B19: Moneda | C19: Soles
B20: Plazo | C20: 12
B21: Fecha de Desembolso | C21: 2024-04-01 | H21: =C22-C21 -> 35 | I21: Días de Periodo de Gracia
B22: Fecha de 1er Pago | C22: 2024-05-06
B23: Cuota Julio | C23: 1
B24: Cuota Diciembre | C24: 1
B25: TEA | C25: 0.834
B26: TEA TOTAL | C26: =+C25 -> 0.834
B27: Monto del Bien | C27: 0
B28: Seguro del Bien | C28: 0
B29: Portes | C29: 0
B30: Cuota | C30: =(C17+(C28*C27+C29)*P34)/O34 -> 606.1943353
B31: 2) Calcular TCEA presionando el botón
B32: TCEA | C32: 1.01476552
U33: =C17-U34-C14-C16 -> 3.97903932e-13
O34: =SUM(O36:O395) -> 8.652874566 | P34: =SUM(P36:P395) -> 8.652874566 | U34: =SUM(U36:U395) -> 5000
B35: N° Cuota | C35: Fecha de pago | D35: Día | E35: Fecha de pago Prev | F35: Días | G35: Dias Acumulados | H35: Saldo Inicial | I35: Amortización | J35: Interés | K35: Seguro del Bien | L35: Portes | M35: Cuota | N35: Saldo Final | O35: Factor Cronograma | P35: Factor Cronograma 2 | R35: Vector i,1 Cuota | S35: Vector i,2 Días Acum | T35: Vector i,3 Factor | U35: Vector i,4 Calculo VA | Z35: Feriados
B36: 1 | C36: =IF(D36=7,E36+1,E36) -> 2024-05-06 | D36: =IF(B36<=$C$20,WEEKDAY(E36,2),"") -> 1 | E36: =C22 -> 2024-05-06 | F36: =C36-C21 -> 35 | G36: =F36 -> 35 | H36: =C17 -> 5245.323546 | I36: =IF(B36>C$20,"",M36-L36-K36-J36) -> 287.6020676 | J36: =IF(B36>C$20,"",((1+C$25)^(F36/360)-1)*H36) -> 318.5922676 | K36: =IF(B36>C$20,"",C$27*C$28) -> 0 | L36: =IF(B36>C$20,"",C$29) -> 0 | M36: =IF(B36>C$20,"",IF(B36=C$20,H36+J36+K36+L36,IF(AND(C$23=2,MONTH(C36)=7),2*C$30,IF(AND(C$24=2,MONTH(C36)=12),2*C$30,C$30)))) -> 606.1943353 | N36: =IF(B36>C$20,"",H36-I36) -> 4957.721478 | O36: =IFERROR(IF(AND(MONTH(C36)=7,C$23=2),2/(1+C$26)^(G36/360),IF(AND(MONTH(C36)=12,C$24=2),2/(1+C$26)^(G36/360),1/(1+C$26)^(G36/360))),"") -> 0.94273956 | P36: =IFERROR(1/(1+C$26)^(G36/360),"") -> 0.94273956 | R36: =IFERROR(I36+J36+K36+L36,"") -> 606.1943353 | S36: =G36 -> 35 | T36: =IFERROR((1+C$32)^(S36/360),"") -> 1.070477104 | U36: =IFERROR(ROUND(R36/T36,2),"") -> 566.28
B37: =IF(B36>=$C$20,"",B36+1) -> 2 | C37: =IF(D37=7,E37+1,E37) -> 2024-06-06 | D37: =IF(B37<=$C$20,WEEKDAY(E37,2),"") -> 4 | E37: =IF(B37>$C$20,"",IF(WEEKDAY(Z37,2)=7,Z37+1,Z37)) -> 2024-06-06 | F37: =C37-C22 -> 31 | G37: =IFERROR(F37+G36,"") -> 66 | H37: =IF(B37>C$20,"",N36) -> 4957.721478 | I37: 340.3901375 | J37: 265.8041978 | K37: 0 | L37: 0 | M37: 606.1943353 | N37: 4617.331341 | O37: 0.8947673382 | P37: 0.8947673382 | R37: =IFERROR(I37+J37+K37+L37,"") -> 606.1943353 | S37: 66 | T37: 1.137036729 | U37: 533.14 | Z37: =IF(B37>$C$20,"",IF(COUNTIF(Feriados!A2:A17,EDATE($C$36,B36))=0,EDATE($C$36,B36),EDATE($C$36,B36)+VLOOKUP(EDATE($C$36,B36),Feriados!$A$2:$B$17,2,FALSE))) -> 2024-06-06
B38: =IF(B37>=$C$20,"",B37+1) -> 3 | C38: 2024-07-06 | D38: =IF(B38<=$C$20,WEEKDAY(E38,2),"") -> 6 | E38: =IF(B38>$C$20,"",IF(WEEKDAY(Z38,2)=7,Z38+1,Z38)) -> 2024-07-06 | F38: =IF(B38>C$20,"",C38-C37) -> 30 | G38: 96 | H38: 4617.331341 | I38: 366.82895 | J38: 239.3653852 | K38: 0 | L38: 0 | M38: 606.1943353 | N38: 4250.502391 | O38: 0.8506681611 | P38: 0.8506681611 | R38: 606.1943353 | S38: 96 | T38: 1.205387091 | U38: 502.9 | Z38: =IF(B38>$C$20,"",IF(COUNTIF(Feriados!A3:A18,EDATE($C$36,B37))=0,EDATE($C$36,B37),EDATE($C$36,B37)+VLOOKUP(EDATE($C$36,B37),Feriados!$A$2:$B$17,2,FALSE))) -> 2024-07-06
B39: 4 | C39: 2024-08-07 | D39: =IF(B39<=$C$20,WEEKDAY(E39,2),"") -> 3 | E39: =IF(B39>$C$20,"",IF(WEEKDAY(Z39,2)=7,Z39+1,Z39)) -> 2024-08-07 | F39: 32 | G39: 128 | H39: 4250.502391 | I39: 370.7559189 | J39: 235.4384164 | K39: 0 | L39: 0 | M39: 606.1943353 | N39: 3879.746472 | O39: 0.8060220159 | P39: 0.8060220159 | R39: 606.1943353 | S39: 128 | T39: 1.282828839 | U39: 472.54 | Z39: =IF(B39>$C$20,"",IF(COUNTIF(Feriados!A4:A19,EDATE($C$36,B38))=0,EDATE($C$36,B38),EDATE($C$36,B38)+VLOOKUP(EDATE($C$36,B38),Feriados!$A$2:$B$17,2,FALSE))) -> 2024-08-07
B40: 5 | C40: 2024-09-06 | D40: 5 | E40: 2024-09-06 | F40: 30 | G40: 158 | H40: 3879.746472 | I40: 405.0658174 | J40: 201.1285178 | K40: 0 | L40: 0 | M40: 606.1943353 | N40: 3474.680654 | O40: 0.7662967085 | P40: 0.7662967085 | R40: 606.1943353 | S40: 158 | T40: 1.35994316 | U40: 445.75 | Z40: =IF(B40>$C$20,"",IF(COUNTIF(Feriados!A5:A20,EDATE($C$36,B39))=0,EDATE($C$36,B39),EDATE($C$36,B39)+VLOOKUP(EDATE($C$36,B39),Feriados!$A$2:$B$17,2,FALSE))) -> 2024-09-06
B41: 6 | C41: 2024-10-07 | D41: 1 | E41: 2024-10-07 | F41: 31 | G41: 189 | H41: 3474.680654 | I41: 419.9021629 | J41: 186.2921723 | K41: 0 | L41: 0 | M41: 606.1943353 | N41: 3054.778491 | O41: 0.7273029533 | P41: 0.7273029533 | R41: 606.1943353 | S41: 189 | T41: 1.44450107 | U41: 419.66 | Z41: =IF(B41>$C$20,"",IF(COUNTIF(Feriados!A7:A21,EDATE($C$36,B40))=0,EDATE($C$36,B40),EDATE($C$36,B40)+VLOOKUP(EDATE($C$36,B40),Feriados!$A$2:$B$17,2,FALSE))) -> 2024-10-06
B42: 7 | C42: 2024-11-06 | D42: 3 | E42: 2024-11-06 | F42: 30 | G42: 219 | H42: 3054.778491 | I42: 447.8326808 | J42: 158.3616545 | K42: 0 | L42: 0 | M42: 606.1943353 | N42: 2606.94581 | O42: 0.6914573649 | P42: 0.6914573649 | R42: 606.1943353 | S42: 219 | T42: 1.531333947 | U42: 395.86 | Z42: =IF(B42>$C$20,"",IF(COUNTIF(Feriados!A8:A22,EDATE($C$36,B41))=0,EDATE($C$36,B41),EDATE($C$36,B41)+VLOOKUP(EDATE($C$36,B41),Feriados!$A$2:$B$17,2,FALSE))) -> 2024-11-06
B43: 8 | C43: 2024-12-06 | D43: 5 | E43: 2024-12-06 | F43: 30 | G43: 249 | H43: 2606.94581 | I43: 471.048611 | J43: 135.1457243 | K43: 0 | L43: 0 | M43: 606.1943353 | N43: 2135.897199 | O43: 0.6573784491 | P43: 0.6573784491 | R43: 606.1943353 | S43: 249 | T43: 1.623386585 | U43: 373.41 | Z43: =IF(B43>$C$20,"",IF(COUNTIF(Feriados!A9:A23,EDATE($C$36,B42))=0,EDATE($C$36,B42),EDATE($C$36,B42)+VLOOKUP(EDATE($C$36,B42),Feriados!$A$2:$B$17,2,FALSE))) -> 2024-12-06
B44: 9 | C44: 2025-01-06 | D44: 1 | E44: 2025-01-06 | F44: 31 | G44: 280 | H44: 2135.897199 | I44: 491.6799471 | J44: 114.5143882 | K44: 0 | L44: 0 | M44: 606.1943353 | N44: 1644.217252 | O44: 0.6239271057 | P44: 0.6239271057 | R44: 606.1943353 | S44: 280 | T44: 1.724324756 | U44: 351.55 | Z44: =IF(B44>$C$20,"",IF(COUNTIF(Feriados!A10:A24,EDATE($C$36,B43))=0,EDATE($C$36,B43),EDATE($C$36,B43)+VLOOKUP(EDATE($C$36,B43),Feriados!$A$2:$B$17,2,FALSE))) -> 2025-01-06
B45: 10 | C45: 2025-02-06 | D45: 4 | E45: 2025-02-06 | F45: 31 | G45: 311 | H45: 1644.217252 | I45: 518.0409669 | J45: 88.15336838 | K45: 0 | L45: 0 | M45: 606.1943353 | N45: 1126.176285 | O45: 0.5921779665 | P45: 0.5921779665 | R45: 606.1943353 | S45: 311 | T45: 1.831539013 | U45: 330.98 | Z45: =IF(B45>$C$20,"",IF(COUNTIF(Feriados!A11:A25,EDATE($C$36,B44))=0,EDATE($C$36,B44),EDATE($C$36,B44)+VLOOKUP(EDATE($C$36,B44),Feriados!$A$2:$B$17,2,FALSE))) -> 2025-02-06
B46: 11 | C46: 2025-03-06 | D46: 4 | E46: 2025-03-06 | F46: 28 | G46: 339 | H46: 1126.176285 | I46: 551.7972239 | J46: 54.39711142 | K46: 0 | L46: 0 | M46: 606.1943353 | N46: 574.3790616 | O46: 0.5648922671 | P46: 0.5648922671 | R46: 606.1943353 | S46: 339 | T46: 1.934096238 | U46: 313.43 | Z46: =IF(B46>$C$20,"",IF(COUNTIF(Feriados!A12:A26,EDATE($C$36,B45))=0,EDATE($C$36,B45),EDATE($C$36,B45)+VLOOKUP(EDATE($C$36,B45),Feriados!$A$2:$B$17,2,FALSE))) -> 2025-03-06
B47: 12 | C47: 2025-04-07 | D47: 1 | E47: 2025-04-07 | F47: 32 | G47: 371 | H47: 574.3790616 | I47: 574.3790616 | J47: 31.81527364 | K47: 0 | L47: 0 | M47: 606.1943353 | N47: 0 | O47: 0.5352446756 | P47: 0.5352446756 | R47: 606.1943353 | S47: 371 | T47: 2.058354906 | U47: 294.5 | Z47: =IF(B47>$C$20,"",IF(COUNTIF(Feriados!A13:A27,EDATE($C$36,B46))=0,EDATE($C$36,B46),EDATE($C$36,B46)+VLOOKUP(EDATE($C$36,B46),Feriados!$A$2:$B$17,2,FALSE))) -> 2025-04-06
Z48: =IF(B48>$C$20,"",IF(COUNTIF(Feriados!A14:A28,EDATE($C$36,B47))=0,EDATE($C$36,B47),EDATE($C$36,B47)+VLOOKUP(EDATE($C$36,B47),Feriados!$A$2:$B$17,2,FALSE))) -> 
Z49: =IF(B49>$C$20,"",IF(COUNTIF(Feriados!A15:A29,EDATE($C$36,B48))=0,EDATE($C$36,B48),EDATE($C$36,B48)+VLOOKUP(EDATE($C$36,B48),Feriados!$A$2:$B$17,2,FALSE))) -> 
Z50: =IF(B50>$C$20,"",IF(COUNTIF(Feriados!A16:A30,EDATE($C$36,B49))=0,EDATE($C$36,B49),EDATE($C$36,B49)+VLOOKUP(EDATE($C$36,B49),Feriados!$A$2:$B$17,2,FALSE))) -> 
Z51: =IF(B51>$C$20,"",IF(COUNTIF(Feriados!A17:A31,EDATE($C$36,B50))=0,EDATE($C$36,B50),EDATE($C$36,B50)+VLOOKUP(EDATE($C$36,B50),Feriados!$A$2:$B$17,2,FALSE))) -> 
Z52: =IF(B52>$C$20,"",IF(COUNTIF(Feriados!A18:A32,EDATE($C$36,B51))=0,EDATE($C$36,B51),EDATE($C$36,B51)+VLOOKUP(EDATE($C$36,B51),Feriados!$A$2:$B$17,2,FALSE))) -> 
Z53: =IF(B53>$C$20,"",IF(COUNTIF(Feriados!A19:A33,EDATE($C$36,B52))=0,EDATE($C$36,B52),EDATE($C$36,B52)+VLOOKUP(EDATE($C$36,B52),Feriados!$A$2:$B$17,2,FALSE))) -> 
Z54: =IF(B54>$C$20,"",IF(COUNTIF(Feriados!A20:A34,EDATE($C$36,B53))=0,EDATE($C$36,B53),EDATE($C$36,B53)+VLOOKUP(EDATE($C$36,B53),Feriados!$A$2:$B$17,2,FALSE))) -> 
Z55: =IF(B55>$C$20,"",IF(COUNTIF(Feriados!A21:A35,EDATE($C$36,B54))=0,EDATE($C$36,B54),EDATE($C$36,B54)+VLOOKUP(EDATE($C$36,B54),Feriados!$A$2:$B$17,2,FALSE))) -> 
Z56: =IF(B56>$C$20,"",IF(COUNTIF(Feriados!A22:A36,EDATE($C$36,B55))=0,EDATE($C$36,B55),EDATE($C$36,B55)+VLOOKUP(EDATE($C$36,B55),Feriados!$A$2:$B$17,2,FALSE))) -> 
Z57: =IF(B57>$C$20,"",IF(COUNTIF(Feriados!A23:A37,EDATE($C$36,B56))=0,EDATE($C$36,B56),EDATE($C$36,B56)+VLOOKUP(EDATE($C$36,B56),Feriados!$A$2:$B$17,2,FALSE))) -> 
Z58: =IF(B58>$C$20,"",IF(COUNTIF(Feriados!A24:A38,EDATE($C$36,B57))=0,EDATE($C$36,B57),EDATE($C$36,B57)+VLOOKUP(EDATE($C$36,B57),Feriados!$A$2:$B$17,2,FALSE))) -> 
Z59: =IF(B59>$C$20,"",IF(COUNTIF(Feriados!A25:A39,EDATE($C$36,B58))=0,EDATE($C$36,B58),EDATE($C$36,B58)+VLOOKUP(EDATE($C$36,B58),Feriados!$A$2:$B$17,2,FALSE))) -> 
Z60: =IF(B60>$C$20,"",IF(COUNTIF(Feriados!A26:A40,EDATE($C$36,B59))=0,EDATE($C$36,B59),EDATE($C$36,B59)+VLOOKUP(EDATE($C$36,B59),Feriados!$A$2:$B$17,2,FALSE))) -> 
Z61: =IF(B61>$C$20,"",IF(COUNTIF(Feriados!A27:A41,EDATE($C$36,B60))=0,EDATE($C$36,B60),EDATE($C$36,B60)+VLOOKUP(EDATE($C$36,B60),Feriados!$A$2:$B$17,2,FALSE))) -> 
Z62: =IF(B62>$C$20,"",IF(COUNTIF(Feriados!A28:A42,EDATE($C$36,B61))=0,EDATE($C$36,B61),EDATE($C$36,B61)+VLOOKUP(EDATE($C$36,B61),Feriados!$A$2:$B$17,2,FALSE))) -> 
Z63: =IF(B63>$C$20,"",IF(COUNTIF(Feriados!A29:A43,EDATE($C$36,B62))=0,EDATE($C$36,B62),EDATE($C$36,B62)+VLOOKUP(EDATE($C$36,B62),Feriados!$A$2:$B$17,2,FALSE))) -> 
Z64: =IF(B64>$C$20,"",IF(COUNTIF(Feriados!A30:A44,EDATE($C$36,B63))=0,EDATE($C$36,B63),EDATE($C$36,B63)+VLOOKUP(EDATE($C$36,B63),Feriados!$A$2:$B$17,2,FALSE))) -> 
Z65: =IF(B65>$C$20,"",IF(COUNTIF(Feriados!A31:A45,EDATE($C$36,B64))=0,EDATE($C$36,B64),EDATE($C$36,B64)+VLOOKUP(EDATE($C$36,B64),Feriados!$A$2:$B$17,2,FALSE))) -> 
Z66: =IF(B66>$C$20,"",IF(COUNTIF(Feriados!A32:A46,EDATE($C$36,B65))=0,EDATE($C$36,B65),EDATE($C$36,B65)+VLOOKUP(EDATE($C$36,B65),Feriados!$A$2:$B$17,2,FALSE))) -> 
Z67: =IF(B67>$C$20,"",IF(COUNTIF(Feriados!A33:A47,EDATE($C$36,B66))=0,EDATE($C$36,B66),EDATE($C$36,B66)+VLOOKUP(EDATE($C$36,B66),Feriados!$A$2:$B$17,2,FALSE))) -> 
M68: =IF(B68>C$20,"",IF(B68=C$20,H68+J68+K68+L68,IF(AND(C$23=2,MONTH(C68)=7),2*C$30,IF(AND(C$24=2,MONTH(C68)=12),2*C$30,C$30)))) ->  | Z68: =IF(B68>$C$20,"",IF(COUNTIF(Feriados!A34:A48,EDATE($C$36,B67))=0,EDATE($C$36,B67),EDATE($C$36,B67)+VLOOKUP(EDATE($C$36,B67),Feriados!$A$2:$B$17,2,FALSE))) -> 
Z69: =IF(B69>$C$20,"",IF(COUNTIF(Feriados!A35:A49,EDATE($C$36,B68))=0,EDATE($C$36,B68),EDATE($C$36,B68)+VLOOKUP(EDATE($C$36,B68),Feriados!$A$2:$B$17,2,FALSE))) -> 
F70: =IF(B70>C$20,"",C70-C69) ->  | Z70: =IF(B70>$C$20,"",IF(COUNTIF(Feriados!A36:A50,EDATE($C$36,B69))=0,EDATE($C$36,B69),EDATE($C$36,B69)+VLOOKUP(EDATE($C$36,B69),Feriados!$A$2:$B$17,2,FALSE))) -> 
Z71: =IF(B71>$C$20,"",IF(COUNTIF(Feriados!A37:A51,EDATE($C$36,B70))=0,EDATE($C$36,B70),EDATE($C$36,B70)+VLOOKUP(EDATE($C$36,B70),Feriados!$A$2:$B$17,2,FALSE))) -> 
Z72: =IF(B72>$C$20,"",IF(COUNTIF(Feriados!A38:A52,EDATE($C$36,B71))=0,EDATE($C$36,B71),EDATE($C$36,B71)+VLOOKUP(EDATE($C$36,B71),Feriados!$A$2:$B$17,2,FALSE))) -> 
Z73: =IF(B73>$C$20,"",IF(COUNTIF(Feriados!A39:A53,EDATE($C$36,B72))=0,EDATE($C$36,B72),EDATE($C$36,B72)+VLOOKUP(EDATE($C$36,B72),Feriados!$A$2:$B$17,2,FALSE))) -> 
Z74: =IF(B74>$C$20,"",IF(COUNTIF(Feriados!A40:A54,EDATE($C$36,B73))=0,EDATE($C$36,B73),EDATE($C$36,B73)+VLOOKUP(EDATE($C$36,B73),Feriados!$A$2:$B$17,2,FALSE))) -> 
Z75: =IF(B75>$C$20,"",IF(COUNTIF(Feriados!A41:A55,EDATE($C$36,B74))=0,EDATE($C$36,B74),EDATE($C$36,B74)+VLOOKUP(EDATE($C$36,B74),Feriados!$A$2:$B$17,2,FALSE))) -> 
Z76: =IF(B76>$C$20,"",IF(COUNTIF(Feriados!A42:A56,EDATE($C$36,B75))=0,EDATE($C$36,B75),EDATE($C$36,B75)+VLOOKUP(EDATE($C$36,B75),Feriados!$A$2:$B$17,2,FALSE))) -> 
Z77: =IF(B77>$C$20,"",IF(COUNTIF(Feriados!A43:A57,EDATE($C$36,B76))=0,EDATE($C$36,B76),EDATE($C$36,B76)+VLOOKUP(EDATE($C$36,B76),Feriados!$A$2:$B$17,2,FALSE))) -> 
Z78: =IF(B78>$C$20,"",IF(COUNTIF(Feriados!A44:A58,EDATE($C$36,B77))=0,EDATE($C$36,B77),EDATE($C$36,B77)+VLOOKUP(EDATE($C$36,B77),Feriados!$A$2:$B$17,2,FALSE))) -> 
Z79: =IF(B79>$C$20,"",IF(COUNTIF(Feriados!A45:A59,EDATE($C$36,B78))=0,EDATE($C$36,B78),EDATE($C$36,B78)+VLOOKUP(EDATE($C$36,B78),Feriados!$A$2:$B$17,2,FALSE))) -> 
Z80: =IF(B80>$C$20,"",IF(COUNTIF(Feriados!A46:A60,EDATE($C$36,B79))=0,EDATE($C$36,B79),EDATE($C$36,B79)+VLOOKUP(EDATE($C$36,B79),Feriados!$A$2:$B$17,2,FALSE))) -> 
Z81: =IF(B81>$C$20,"",IF(COUNTIF(Feriados!A47:A61,EDATE($C$36,B80))=0,EDATE($C$36,B80),EDATE($C$36,B80)+VLOOKUP(EDATE($C$36,B80),Feriados!$A$2:$B$17,2,FALSE))) -> 
Z82: =IF(B82>$C$20,"",IF(COUNTIF(Feriados!A48:A62,EDATE($C$36,B81))=0,EDATE($C$36,B81),EDATE($C$36,B81)+VLOOKUP(EDATE($C$36,B81),Feriados!$A$2:$B$17,2,FALSE))) -> 
Z83: =IF(B83>$C$20,"",IF(COUNTIF(Feriados!A49:A63,EDATE($C$36,B82))=0,EDATE($C$36,B82),EDATE($C$36,B82)+VLOOKUP(EDATE($C$36,B82),Feriados!$A$2:$B$17,2,FALSE))) -> 
Z84: =IF(B84>$C$20,"",IF(COUNTIF(Feriados!A50:A64,EDATE($C$36,B83))=0,EDATE($C$36,B83),EDATE($C$36,B83)+VLOOKUP(EDATE($C$36,B83),Feriados!$A$2:$B$17,2,FALSE))) -> 
Z85: =IF(B85>$C$20,"",IF(COUNTIF(Feriados!A51:A65,EDATE($C$36,B84))=0,EDATE($C$36,B84),EDATE($C$36,B84)+VLOOKUP(EDATE($C$36,B84),Feriados!$A$2:$B$17,2,FALSE))) -> 
Z86: =IF(B86>$C$20,"",IF(COUNTIF(Feriados!A52:A66,EDATE($C$36,B85))=0,EDATE($C$36,B85),EDATE($C$36,B85)+VLOOKUP(EDATE($C$36,B85),Feriados!$A$2:$B$17,2,FALSE))) -> 
Z87: =IF(B87>$C$20,"",IF(COUNTIF(Feriados!A53:A67,EDATE($C$36,B86))=0,EDATE($C$36,B86),EDATE($C$36,B86)+VLOOKUP(EDATE($C$36,B86),Feriados!$A$2:$B$17,2,FALSE))) -> 
Z88: =IF(B88>$C$20,"",IF(COUNTIF(Feriados!A54:A68,EDATE($C$36,B87))=0,EDATE($C$36,B87),EDATE($C$36,B87)+VLOOKUP(EDATE($C$36,B87),Feriados!$A$2:$B$17,2,FALSE))) -> 
Z89: =IF(B89>$C$20,"",IF(COUNTIF(Feriados!A55:A69,EDATE($C$36,B88))=0,EDATE($C$36,B88),EDATE($C$36,B88)+VLOOKUP(EDATE($C$36,B88),Feriados!$A$2:$B$17,2,FALSE))) -> 
Z90: =IF(B90>$C$20,"",IF(COUNTIF(Feriados!A56:A70,EDATE($C$36,B89))=0,EDATE($C$36,B89),EDATE($C$36,B89)+VLOOKUP(EDATE($C$36,B89),Feriados!$A$2:$B$17,2,FALSE))) -> 
Z91: =IF(B91>$C$20,"",IF(COUNTIF(Feriados!A57:A71,EDATE($C$36,B90))=0,EDATE($C$36,B90),EDATE($C$36,B90)+VLOOKUP(EDATE($C$36,B90),Feriados!$A$2:$B$17,2,FALSE))) -> 
Z92: =IF(B92>$C$20,"",IF(COUNTIF(Feriados!A58:A72,EDATE($C$36,B91))=0,EDATE($C$36,B91),EDATE($C$36,B91)+VLOOKUP(EDATE($C$36,B91),Feriados!$A$2:$B$17,2,FALSE))) -> 
Z93: =IF(B93>$C$20,"",IF(COUNTIF(Feriados!A59:A73,EDATE($C$36,B92))=0,EDATE($C$36,B92),EDATE($C$36,B92)+VLOOKUP(EDATE($C$36,B92),Feriados!$A$2:$B$17,2,FALSE))) -> 
Z94: =IF(B94>$C$20,"",IF(COUNTIF(Feriados!A60:A74,EDATE($C$36,B93))=0,EDATE($C$36,B93),EDATE($C$36,B93)+VLOOKUP(EDATE($C$36,B93),Feriados!$A$2:$B$17,2,FALSE))) -> 
Z95: =IF(B95>$C$20,"",IF(COUNTIF(Feriados!A61:A75,EDATE($C$36,B94))=0,EDATE($C$36,B94),EDATE($C$36,B94)+VLOOKUP(EDATE($C$36,B94),Feriados!$A$2:$B$17,2,FALSE))) -> 
Z96: =IF(B96>$C$20,"",IF(COUNTIF(Feriados!A62:A76,EDATE($C$36,B95))=0,EDATE($C$36,B95),EDATE($C$36,B95)+VLOOKUP(EDATE($C$36,B95),Feriados!$A$2:$B$17,2,FALSE))) -> 
Z97: =IF(B97>$C$20,"",IF(COUNTIF(Feriados!A63:A77,EDATE($C$36,B96))=0,EDATE($C$36,B96),EDATE($C$36,B96)+VLOOKUP(EDATE($C$36,B96),Feriados!$A$2:$B$17,2,FALSE))) -> 
Z98: =IF(B98>$C$20,"",IF(COUNTIF(Feriados!A64:A78,EDATE($C$36,B97))=0,EDATE($C$36,B97),EDATE($C$36,B97)+VLOOKUP(EDATE($C$36,B97),Feriados!$A$2:$B$17,2,FALSE))) -> 
Z99: =IF(B99>$C$20,"",IF(COUNTIF(Feriados!A65:A79,EDATE($C$36,B98))=0,EDATE($C$36,B98),EDATE($C$36,B98)+VLOOKUP(EDATE($C$36,B98),Feriados!$A$2:$B$17,2,FALSE))) -> 
I100: =IF(B100>C$20,"",M100-L100-K100-J100) ->  | J100: =IF(B100>C$20,"",((1+C$25)^(F100/360)-1)*H100) ->  | K100: =IF(B100>C$20,"",C$27*C$28) ->  | L100: =IF(B100>C$20,"",C$29) ->  | M100: =IF(B100>C$20,"",IF(B100=C$20,H100+J100+K100+L100,IF(AND(C$23=2,MONTH(C100)=7),2*C$30,IF(AND(C$24=2,MONTH(C100)=12),2*C$30,C$30)))) ->  | N100: =IF(B100>C$20,"",H100-I100) ->  | O100: =IFERROR(IF(AND(MONTH(C100)=7,C$23=2),2/(1+C$26)^(G100/360),IF(AND(MONTH(C100)=12,C$24=2),2/(1+C$26)^(G100/360),1/(1+C$26)^(G100/360))),"") ->  | P100: =IFERROR(1/(1+C$26)^(G100/360),"") ->  | S100: =G100 ->  | T100: =IFERROR((1+C$32)^(S100/360),"") ->  | U100: =IFERROR(ROUND(R100/T100,2),"") ->  | Z100: =IF(B100>$C$20,"",IF(COUNTIF(Feriados!A66:A80,EDATE($C$36,B99))=0,EDATE($C$36,B99),EDATE($C$36,B99)+VLOOKUP(EDATE($C$36,B99),Feriados!$A$2:$B$17,2,FALSE))) -> 
C101: =IF(D101=7,E101+1,E101) ->  | G101: =IFERROR(F101+G100,"") ->  | H101: =IF(B101>C$20,"",N100) ->  | R101: =IFERROR(I101+J101+K101+L101,"") ->  | Z101: =IF(B101>$C$20,"",IF(COUNTIF(Feriados!A67:A81,EDATE($C$36,B100))=0,EDATE($C$36,B100),EDATE($C$36,B100)+VLOOKUP(EDATE($C$36,B100),Feriados!$A$2:$B$17,2,FALSE))) -> 
B102: =IF(B101>=$C$20,"",B101+1) ->  | F102: =IF(B102>C$20,"",C102-C101) ->  | Z102: =IF(B102>$C$20,"",IF(COUNTIF(Feriados!A68:A82,EDATE($C$36,B101))=0,EDATE($C$36,B101),EDATE($C$36,B101)+VLOOKUP(EDATE($C$36,B101),Feriados!$A$2:$B$17,2,FALSE))) -> 
D103: =IF(B103<=$C$20,WEEKDAY(E103,2),"") ->  | E103: =IF(B103>$C$20,"",IF(WEEKDAY(Z103,2)=7,Z103+1,Z103)) ->  | Z103: =IF(B103>$C$20,"",IF(COUNTIF(Feriados!A69:A83,EDATE($C$36,B102))=0,EDATE($C$36,B102),EDATE($C$36,B102)+VLOOKUP(EDATE($C$36,B102),Feriados!$A$2:$B$17,2,FALSE))) -> 
Z104: =IF(B104>$C$20,"",IF(COUNTIF(Feriados!A70:A84,EDATE($C$36,B103))=0,EDATE($C$36,B103),EDATE($C$36,B103)+VLOOKUP(EDATE($C$36,B103),Feriados!$A$2:$B$17,2,FALSE))) -> 
Z105: =IF(B105>$C$20,"",IF(COUNTIF(Feriados!A71:A85,EDATE($C$36,B104))=0,EDATE($C$36,B104),EDATE($C$36,B104)+VLOOKUP(EDATE($C$36,B104),Feriados!$A$2:$B$17,2,FALSE))) -> 
Z106: =IF(B106>$C$20,"",IF(COUNTIF(Feriados!A72:A86,EDATE($C$36,B105))=0,EDATE($C$36,B105),EDATE($C$36,B105)+VLOOKUP(EDATE($C$36,B105),Feriados!$A$2:$B$17,2,FALSE))) -> 
Z107: =IF(B107>$C$20,"",IF(COUNTIF(Feriados!A73:A87,EDATE($C$36,B106))=0,EDATE($C$36,B106),EDATE($C$36,B106)+VLOOKUP(EDATE($C$36,B106),Feriados!$A$2:$B$17,2,FALSE))) -> 
C108: =IF(B108>$C$20,"",EDATE(C107,1)) ->  | E108: =IF(B108>$C$20,"",EDATE(C107,1)) ->  | F108: =IF(B108>C$20,"",#REF!-#REF!) ->  | M108: =IF(B108>C$20,"",IF(B108=C$20,H108+J108+K108+L108,IF(AND(C$23=2,MONTH(#REF!)=7),2*C$30,IF(AND(C$24=2,MONTH(#REF!)=12),2*C$30,C$30)))) -> 
F109: =IF(B109>C$20,"",#REF!-#REF!) ->  | M109: =IF(B109>C$20,"",IF(B109=C$20,H109+J109+K109+L109,IF(AND(C$23=2,MONTH(#REF!)=7),2*C$30,IF(AND(C$24=2,MONTH(#REF!)=12),2*C$30,C$30)))) -> 
F110: =IF(B110>C$20,"",#REF!-#REF!) ->  | M110: =IF(B110>C$20,"",IF(B110=C$20,H110+J110+K110+L110,IF(AND(C$23=2,MONTH(#REF!)=7),2*C$30,IF(AND(C$24=2,MONTH(#REF!)=12),2*C$30,C$30)))) -> 
F111: =IF(B111>C$20,"",#REF!-#REF!) ->  | M111: =IF(B111>C$20,"",IF(B111=C$20,H111+J111+K111+L111,IF(AND(C$23=2,MONTH(#REF!)=7),2*C$30,IF(AND(C$24=2,MONTH(#REF!)=12),2*C$30,C$30)))) -> 
F112: =IF(B112>C$20,"",#REF!-#REF!) ->  | M112: =IF(B112>C$20,"",IF(B112=C$20,H112+J112+K112+L112,IF(AND(C$23=2,MONTH(#REF!)=7),2*C$30,IF(AND(C$24=2,MONTH(#REF!)=12),2*C$30,C$30)))) -> 
F113: =IF(B113>C$20,"",#REF!-#REF!) ->  | M113: =IF(B113>C$20,"",IF(B113=C$20,H113+J113+K113+L113,IF(AND(C$23=2,MONTH(#REF!)=7),2*C$30,IF(AND(C$24=2,MONTH(#REF!)=12),2*C$30,C$30)))) -> 
F114: =IF(B114>C$20,"",#REF!-#REF!) ->  | M114: =IF(B114>C$20,"",IF(B114=C$20,H114+J114+K114+L114,IF(AND(C$23=2,MONTH(#REF!)=7),2*C$30,IF(AND(C$24=2,MONTH(#REF!)=12),2*C$30,C$30)))) -> 
F115: =IF(B115>C$20,"",#REF!-#REF!) ->  | M115: =IF(B115>C$20,"",IF(B115=C$20,H115+J115+K115+L115,IF(AND(C$23=2,MONTH(#REF!)=7),2*C$30,IF(AND(C$24=2,MONTH(#REF!)=12),2*C$30,C$30)))) -> 
F116: =IF(B116>C$20,"",#REF!-#REF!) ->  | M116: =IF(B116>C$20,"",IF(B116=C$20,H116+J116+K116+L116,IF(AND(C$23=2,MONTH(#REF!)=7),2*C$30,IF(AND(C$24=2,MONTH(#REF!)=12),2*C$30,C$30)))) -> 
F117: =IF(B117>C$20,"",#REF!-#REF!) ->  | M117: =IF(B117>C$20,"",IF(B117=C$20,H117+J117+K117+L117,IF(AND(C$23=2,MONTH(#REF!)=7),2*C$30,IF(AND(C$24=2,MONTH(#REF!)=12),2*C$30,C$30)))) -> 
F118: =IF(B118>C$20,"",#REF!-#REF!) ->  | M118: =IF(B118>C$20,"",IF(B118=C$20,H118+J118+K118+L118,IF(AND(C$23=2,MONTH(#REF!)=7),2*C$30,IF(AND(C$24=2,MONTH(#REF!)=12),2*C$30,C$30)))) -> 
F119: =IF(B119>C$20,"",#REF!-#REF!) ->  | M119: =IF(B119>C$20,"",IF(B119=C$20,H119+J119+K119+L119,IF(AND(C$23=2,MONTH(#REF!)=7),2*C$30,IF(AND(C$24=2,MONTH(#REF!)=12),2*C$30,C$30)))) -> 
F120: =IF(B120>C$20,"",#REF!-#REF!) ->  | M120: =IF(B120>C$20,"",IF(B120=C$20,H120+J120+K120+L120,IF(AND(C$23=2,MONTH(#REF!)=7),2*C$30,IF(AND(C$24=2,MONTH(#REF!)=12),2*C$30,C$30)))) -> 
F121: =IF(B121>C$20,"",#REF!-#REF!) ->  | M121: =IF(B121>C$20,"",IF(B121=C$20,H121+J121+K121+L121,IF(AND(C$23=2,MONTH(#REF!)=7),2*C$30,IF(AND(C$24=2,MONTH(#REF!)=12),2*C$30,C$30)))) -> 
F122: =IF(B122>C$20,"",#REF!-#REF!) ->  | M122: =IF(B122>C$20,"",IF(B122=C$20,H122+J122+K122+L122,IF(AND(C$23=2,MONTH(#REF!)=7),2*C$30,IF(AND(C$24=2,MONTH(#REF!)=12),2*C$30,C$30)))) -> 
F123: =IF(B123>C$20,"",#REF!-#REF!) ->  | M123: =IF(B123>C$20,"",IF(B123=C$20,H123+J123+K123+L123,IF(AND(C$23=2,MONTH(#REF!)=7),2*C$30,IF(AND(C$24=2,MONTH(#REF!)=12),2*C$30,C$30)))) -> 
F124: =IF(B124>C$20,"",#REF!-#REF!) ->  | M124: =IF(B124>C$20,"",IF(B124=C$20,H124+J124+K124+L124,IF(AND(C$23=2,MONTH(#REF!)=7),2*C$30,IF(AND(C$24=2,MONTH(#REF!)=12),2*C$30,C$30)))) -> 
F125: =IF(B125>C$20,"",#REF!-#REF!) ->  | M125: =IF(B125>C$20,"",IF(B125=C$20,H125+J125+K125+L125,IF(AND(C$23=2,MONTH(#REF!)=7),2*C$30,IF(AND(C$24=2,MONTH(#REF!)=12),2*C$30,C$30)))) -> 
F126: =IF(B126>C$20,"",#REF!-#REF!) ->  | M126: =IF(B126>C$20,"",IF(B126=C$20,H126+J126+K126+L126,IF(AND(C$23=2,MONTH(#REF!)=7),2*C$30,IF(AND(C$24=2,MONTH(#REF!)=12),2*C$30,C$30)))) -> 
F127: =IF(B127>C$20,"",#REF!-#REF!) ->  | M127: =IF(B127>C$20,"",IF(B127=C$20,H127+J127+K127+L127,IF(AND(C$23=2,MONTH(#REF!)=7),2*C$30,IF(AND(C$24=2,MONTH(#REF!)=12),2*C$30,C$30)))) -> 
F128: =IF(B128>C$20,"",#REF!-#REF!) ->  | M128: =IF(B128>C$20,"",IF(B128=C$20,H128+J128+K128+L128,IF(AND(C$23=2,MONTH(#REF!)=7),2*C$30,IF(AND(C$24=2,MONTH(#REF!)=12),2*C$30,C$30)))) -> 
F129: =IF(B129>C$20,"",#REF!-#REF!) ->  | M129: =IF(B129>C$20,"",IF(B129=C$20,H129+J129+K129+L129,IF(AND(C$23=2,MONTH(#REF!)=7),2*C$30,IF(AND(C$24=2,MONTH(#REF!)=12),2*C$30,C$30)))) -> 
F130: =IF(B130>C$20,"",#REF!-#REF!) ->  | M130: =IF(B130>C$20,"",IF(B130=C$20,H130+J130+K130+L130,IF(AND(C$23=2,MONTH(#REF!)=7),2*C$30,IF(AND(C$24=2,MONTH(#REF!)=12),2*C$30,C$30)))) -> 
F131: =IF(B131>C$20,"",#REF!-#REF!) ->  | M131: =IF(B131>C$20,"",IF(B131=C$20,H131+J131+K131+L131,IF(AND(C$23=2,MONTH(#REF!)=7),2*C$30,IF(AND(C$24=2,MONTH(#REF!)=12),2*C$30,C$30)))) -> 
F132: =IF(B132>C$20,"",#REF!-#REF!) ->  | M132: =IF(B132>C$20,"",IF(B132=C$20,H132+J132+K132+L132,IF(AND(C$23=2,MONTH(#REF!)=7),2*C$30,IF(AND(C$24=2,MONTH(#REF!)=12),2*C$30,C$30)))) -> 
F133: =IF(B133>C$20,"",#REF!-#REF!) ->  | M133: =IF(B133>C$20,"",IF(B133=C$20,H133+J133+K133+L133,IF(AND(C$23=2,MONTH(#REF!)=7),2*C$30,IF(AND(C$24=2,MONTH(#REF!)=12),2*C$30,C$30)))) -> 
F134: =IF(B134>C$20,"",#REF!-#REF!) ->  | M134: =IF(B134>C$20,"",IF(B134=C$20,H134+J134+K134+L134,IF(AND(C$23=2,MONTH(#REF!)=7),2*C$30,IF(AND(C$24=2,MONTH(#REF!)=12),2*C$30,C$30)))) -> 
F135: =IF(B135>C$20,"",#REF!-#REF!) ->  | M135: =IF(B135>C$20,"",IF(B135=C$20,H135+J135+K135+L135,IF(AND(C$23=2,MONTH(#REF!)=7),2*C$30,IF(AND(C$24=2,MONTH(#REF!)=12),2*C$30,C$30)))) -> 
F136: =IF(B136>C$20,"",#REF!-#REF!) ->  | M136: =IF(B136>C$20,"",IF(B136=C$20,H136+J136+K136+L136,IF(AND(C$23=2,MONTH(#REF!)=7),2*C$30,IF(AND(C$24=2,MONTH(#REF!)=12),2*C$30,C$30)))) -> 
F137: =IF(B137>C$20,"",#REF!-#REF!) ->  | M137: =IF(B137>C$20,"",IF(B137=C$20,H137+J137+K137+L137,IF(AND(C$23=2,MONTH(#REF!)=7),2*C$30,IF(AND(C$24=2,MONTH(#REF!)=12),2*C$30,C$30)))) -> 
F138: =IF(B138>C$20,"",#REF!-#REF!) ->  | M138: =IF(B138>C$20,"",IF(B138=C$20,H138+J138+K138+L138,IF(AND(C$23=2,MONTH(#REF!)=7),2*C$30,IF(AND(C$24=2,MONTH(#REF!)=12),2*C$30,C$30)))) -> 
F139: =IF(B139>C$20,"",#REF!-#REF!) ->  | M139: =IF(B139>C$20,"",IF(B139=C$20,H139+J139+K139+L139,IF(AND(C$23=2,MONTH(#REF!)=7),2*C$30,IF(AND(C$24=2,MONTH(#REF!)=12),2*C$30,C$30)))) -> 
F140: =IF(B140>C$20,"",#REF!-#REF!) ->  | M140: =IF(B140>C$20,"",IF(B140=C$20,H140+J140+K140+L140,IF(AND(C$23=2,MONTH(#REF!)=7),2*C$30,IF(AND(C$24=2,MONTH(#REF!)=12),2*C$30,C$30)))) -> 
F141: =IF(B141>C$20,"",#REF!-#REF!) ->  | M141: =IF(B141>C$20,"",IF(B141=C$20,H141+J141+K141+L141,IF(AND(C$23=2,MONTH(#REF!)=7),2*C$30,IF(AND(C$24=2,MONTH(#REF!)=12),2*C$30,C$30)))) -> 
F142: =IF(B142>C$20,"",#REF!-#REF!) ->  | M142: =IF(B142>C$20,"",IF(B142=C$20,H142+J142+K142+L142,IF(AND(C$23=2,MONTH(#REF!)=7),2*C$30,IF(AND(C$24=2,MONTH(#REF!)=12),2*C$30,C$30)))) -> 
F143: =IF(B143>C$20,"",#REF!-#REF!) ->  | M143: =IF(B143>C$20,"",IF(B143=C$20,H143+J143+K143+L143,IF(AND(C$23=2,MONTH(#REF!)=7),2*C$30,IF(AND(C$24=2,MONTH(#REF!)=12),2*C$30,C$30)))) -> 
F144: =IF(B144>C$20,"",#REF!-#REF!) ->  | M144: =IF(B144>C$20,"",IF(B144=C$20,H144+J144+K144+L144,IF(AND(C$23=2,MONTH(#REF!)=7),2*C$30,IF(AND(C$24=2,MONTH(#REF!)=12),2*C$30,C$30)))) -> 
F145: =IF(B145>C$20,"",#REF!-#REF!) ->  | M145: =IF(B145>C$20,"",IF(B145=C$20,H145+J145+K145+L145,IF(AND(C$23=2,MONTH(#REF!)=7),2*C$30,IF(AND(C$24=2,MONTH(#REF!)=12),2*C$30,C$30)))) -> 
F146: =IF(B146>C$20,"",#REF!-#REF!) ->  | M146: =IF(B146>C$20,"",IF(B146=C$20,H146+J146+K146+L146,IF(AND(C$23=2,MONTH(#REF!)=7),2*C$30,IF(AND(C$24=2,MONTH(#REF!)=12),2*C$30,C$30)))) -> 
F147: =IF(B147>C$20,"",#REF!-#REF!) ->  | M147: =IF(B147>C$20,"",IF(B147=C$20,H147+J147+K147+L147,IF(AND(C$23=2,MONTH(#REF!)=7),2*C$30,IF(AND(C$24=2,MONTH(#REF!)=12),2*C$30,C$30)))) -> 
F148: =IF(B148>C$20,"",#REF!-#REF!) ->  | M148: =IF(B148>C$20,"",IF(B148=C$20,H148+J148+K148+L148,IF(AND(C$23=2,MONTH(#REF!)=7),2*C$30,IF(AND(C$24=2,MONTH(#REF!)=12),2*C$30,C$30)))) -> 
F149: =IF(B149>C$20,"",#REF!-#REF!) ->  | M149: =IF(B149>C$20,"",IF(B149=C$20,H149+J149+K149+L149,IF(AND(C$23=2,MONTH(#REF!)=7),2*C$30,IF(AND(C$24=2,MONTH(#REF!)=12),2*C$30,C$30)))) -> 
F150: =IF(B150>C$20,"",#REF!-#REF!) ->  | M150: =IF(B150>C$20,"",IF(B150=C$20,H150+J150+K150+L150,IF(AND(C$23=2,MONTH(#REF!)=7),2*C$30,IF(AND(C$24=2,MONTH(#REF!)=12),2*C$30,C$30)))) -> 
F151: =IF(B151>C$20,"",#REF!-#REF!) ->  | M151: =IF(B151>C$20,"",IF(B151=C$20,H151+J151+K151+L151,IF(AND(C$23=2,MONTH(#REF!)=7),2*C$30,IF(AND(C$24=2,MONTH(#REF!)=12),2*C$30,C$30)))) -> 
F152: =IF(B152>C$20,"",#REF!-#REF!) ->  | M152: =IF(B152>C$20,"",IF(B152=C$20,H152+J152+K152+L152,IF(AND(C$23=2,MONTH(#REF!)=7),2*C$30,IF(AND(C$24=2,MONTH(#REF!)=12),2*C$30,C$30)))) -> 
F153: =IF(B153>C$20,"",#REF!-#REF!) ->  | M153: =IF(B153>C$20,"",IF(B153=C$20,H153+J153+K153+L153,IF(AND(C$23=2,MONTH(#REF!)=7),2*C$30,IF(AND(C$24=2,MONTH(#REF!)=12),2*C$30,C$30)))) -> 
F154: =IF(B154>C$20,"",#REF!-#REF!) ->  | M154: =IF(B154>C$20,"",IF(B154=C$20,H154+J154+K154+L154,IF(AND(C$23=2,MONTH(#REF!)=7),2*C$30,IF(AND(C$24=2,MONTH(#REF!)=12),2*C$30,C$30)))) -> 
F155: =IF(B155>C$20,"",#REF!-#REF!) ->  | M155: =IF(B155>C$20,"",IF(B155=C$20,H155+J155+K155+L155,IF(AND(C$23=2,MONTH(#REF!)=7),2*C$30,IF(AND(C$24=2,MONTH(#REF!)=12),2*C$30,C$30)))) -> 
F156: =IF(B156>C$20,"",#REF!-#REF!) ->  | M156: =IF(B156>C$20,"",IF(B156=C$20,H156+J156+K156+L156,IF(AND(C$23=2,MONTH(#REF!)=7),2*C$30,IF(AND(C$24=2,MONTH(#REF!)=12),2*C$30,C$30)))) -> 
F157: =IF(B157>C$20,"",#REF!-#REF!) ->  | M157: =IF(B157>C$20,"",IF(B157=C$20,H157+J157+K157+L157,IF(AND(C$23=2,MONTH(#REF!)=7),2*C$30,IF(AND(C$24=2,MONTH(#REF!)=12),2*C$30,C$30)))) -> 
F158: =IF(B158>C$20,"",#REF!-#REF!) ->  | M158: =IF(B158>C$20,"",IF(B158=C$20,H158+J158+K158+L158,IF(AND(C$23=2,MONTH(#REF!)=7),2*C$30,IF(AND(C$24=2,MONTH(#REF!)=12),2*C$30,C$30)))) -> 
F159: =IF(B159>C$20,"",#REF!-#REF!) ->  | M159: =IF(B159>C$20,"",IF(B159=C$20,H159+J159+K159+L159,IF(AND(C$23=2,MONTH(#REF!)=7),2*C$30,IF(AND(C$24=2,MONTH(#REF!)=12),2*C$30,C$30)))) -> 
F160: =IF(B160>C$20,"",#REF!-#REF!) ->  | M160: =IF(B160>C$20,"",IF(B160=C$20,H160+J160+K160+L160,IF(AND(C$23=2,MONTH(#REF!)=7),2*C$30,IF(AND(C$24=2,MONTH(#REF!)=12),2*C$30,C$30)))) -> 
F161: =IF(B161>C$20,"",#REF!-#REF!) ->  | M161: =IF(B161>C$20,"",IF(B161=C$20,H161+J161+K161+L161,IF(AND(C$23=2,MONTH(#REF!)=7),2*C$30,IF(AND(C$24=2,MONTH(#REF!)=12),2*C$30,C$30)))) -> 
F162: =IF(B162>C$20,"",#REF!-#REF!) ->  | M162: =IF(B162>C$20,"",IF(B162=C$20,H162+J162+K162+L162,IF(AND(C$23=2,MONTH(#REF!)=7),2*C$30,IF(AND(C$24=2,MONTH(#REF!)=12),2*C$30,C$30)))) -> 
F163: =IF(B163>C$20,"",#REF!-#REF!) ->  | M163: =IF(B163>C$20,"",IF(B163=C$20,H163+J163+K163+L163,IF(AND(C$23=2,MONTH(#REF!)=7),2*C$30,IF(AND(C$24=2,MONTH(#REF!)=12),2*C$30,C$30)))) -> 
F164: =IF(B164>C$20,"",#REF!-#REF!) ->  | I164: =IF(B164>C$20,"",M164-L164-K164-J164) ->  | J164: =IF(B164>C$20,"",((1+C$25)^(F164/360)-1)*H164) ->  | K164: =IF(B164>C$20,"",C$27*C$28) ->  | L164: =IF(B164>C$20,"",C$29) ->  | M164: =IF(B164>C$20,"",IF(B164=C$20,H164+J164+K164+L164,IF(AND(C$23=2,MONTH(#REF!)=7),2*C$30,IF(AND(C$24=2,MONTH(#REF!)=12),2*C$30,C$30)))) ->  | N164: =IF(B164>C$20,"",H164-I164) ->  | O164: =IFERROR(IF(AND(MONTH(C164)=7,C$23=2),2/(1+C$26)^(G164/360),IF(AND(MONTH(C164)=12,C$24=2),2/(1+C$26)^(G164/360),1/(1+C$26)^(G164/360))),"") ->  | P164: =IFERROR(1/(1+C$26)^(G164/360),"") ->  | S164: =G164 ->  | T164: =IFERROR((1+C$32)^(S164/360),"") ->  | U164: =IFERROR(ROUND(R164/T164,2),"") -> 
F165: =IF(B165>C$20,"",#REF!-#REF!) ->  | G165: =IFERROR(F165+G164,"") ->  | H165: =IF(B165>C$20,"",N164) ->  | M165: =IF(B165>C$20,"",IF(B165=C$20,H165+J165+K165+L165,IF(AND(C$23=2,MONTH(#REF!)=7),2*C$30,IF(AND(C$24=2,MONTH(#REF!)=12),2*C$30,C$30)))) ->  | R165: =IFERROR(I165+J165+K165+L165,"") -> 
B166: =IF(B165>=$C$20,"",B165+1) ->  | E166: =IF(B166>$C$20,"",EDATE(C165,1)) ->  | F166: =IF(B166>C$20,"",#REF!-#REF!) ->  | M166: =IF(B166>C$20,"",IF(B166=C$20,H166+J166+K166+L166,IF(AND(C$23=2,MONTH(#REF!)=7),2*C$30,IF(AND(C$24=2,MONTH(#REF!)=12),2*C$30,C$30)))) -> 
D167: =IF(B167<=$C$20,WEEKDAY(E167,2),"") ->  | F167: =IF(B167>C$20,"",#REF!-#REF!) ->  | M167: =IF(B167>C$20,"",IF(B167=C$20,H167+J167+K167+L167,IF(AND(C$23=2,MONTH(#REF!)=7),2*C$30,IF(AND(C$24=2,MONTH(#REF!)=12),2*C$30,C$30)))) -> 
F168: =IF(B168>C$20,"",#REF!-#REF!) ->  | M168: =IF(B168>C$20,"",IF(B168=C$20,H168+J168+K168+L168,IF(AND(C$23=2,MONTH(#REF!)=7),2*C$30,IF(AND(C$24=2,MONTH(#REF!)=12),2*C$30,C$30)))) -> 
F169: =IF(B169>C$20,"",#REF!-#REF!) ->  | M169: =IF(B169>C$20,"",IF(B169=C$20,H169+J169+K169+L169,IF(AND(C$23=2,MONTH(#REF!)=7),2*C$30,IF(AND(C$24=2,MONTH(#REF!)=12),2*C$30,C$30)))) -> 
F170: =IF(B170>C$20,"",#REF!-#REF!) ->  | M170: =IF(B170>C$20,"",IF(B170=C$20,H170+J170+K170+L170,IF(AND(C$23=2,MONTH(#REF!)=7),2*C$30,IF(AND(C$24=2,MONTH(#REF!)=12),2*C$30,C$30)))) -> 
F171: =IF(B171>C$20,"",#REF!-#REF!) ->  | M171: =IF(B171>C$20,"",IF(B171=C$20,H171+J171+K171+L171,IF(AND(C$23=2,MONTH(#REF!)=7),2*C$30,IF(AND(C$24=2,MONTH(#REF!)=12),2*C$30,C$30)))) -> 
C172: =IF(B172>$C$20,"",EDATE(C171,1)) ->  | F172: =IF(B172>C$20,"",#REF!-#REF!) ->  | M172: =IF(B172>C$20,"",IF(B172=C$20,H172+J172+K172+L172,IF(AND(C$23=2,MONTH(#REF!)=7),2*C$30,IF(AND(C$24=2,MONTH(#REF!)=12),2*C$30,C$30)))) -> 
F173: =IF(B173>C$20,"",#REF!-#REF!) ->  | M173: =IF(B173>C$20,"",IF(B173=C$20,H173+J173+K173+L173,IF(AND(C$23=2,MONTH(#REF!)=7),2*C$30,IF(AND(C$24=2,MONTH(#REF!)=12),2*C$30,C$30)))) -> 
F174: =IF(B174>C$20,"",#REF!-#REF!) ->  | M174: =IF(B174>C$20,"",IF(B174=C$20,H174+J174+K174+L174,IF(AND(C$23=2,MONTH(#REF!)=7),2*C$30,IF(AND(C$24=2,MONTH(#REF!)=12),2*C$30,C$30)))) -> 
F175: =IF(B175>C$20,"",#REF!-#REF!) ->  | M175: =IF(B175>C$20,"",IF(B175=C$20,H175+J175+K175+L175,IF(AND(C$23=2,MONTH(#REF!)=7),2*C$30,IF(AND(C$24=2,MONTH(#REF!)=12),2*C$30,C$30)))) -> 
F176: =IF(B176>C$20,"",#REF!-#REF!) ->  | M176: =IF(B176>C$20,"",IF(B176=C$20,H176+J176+K176+L176,IF(AND(C$23=2,MONTH(#REF!)=7),2*C$30,IF(AND(C$24=2,MONTH(#REF!)=12),2*C$30,C$30)))) -> 
F177: =IF(B177>C$20,"",#REF!-#REF!) ->  | M177: =IF(B177>C$20,"",IF(B177=C$20,H177+J177+K177+L177,IF(AND(C$23=2,MONTH(#REF!)=7),2*C$30,IF(AND(C$24=2,MONTH(#REF!)=12),2*C$30,C$30)))) -> 
F178: =IF(B178>C$20,"",#REF!-#REF!) ->  | M178: =IF(B178>C$20,"",IF(B178=C$20,H178+J178+K178+L178,IF(AND(C$23=2,MONTH(#REF!)=7),2*C$30,IF(AND(C$24=2,MONTH(#REF!)=12),2*C$30,C$30)))) -> 
F179: =IF(B179>C$20,"",#REF!-#REF!) ->  | M179: =IF(B179>C$20,"",IF(B179=C$20,H179+J179+K179+L179,IF(AND(C$23=2,MONTH(#REF!)=7),2*C$30,IF(AND(C$24=2,MONTH(#REF!)=12),2*C$30,C$30)))) -> 
F180: =IF(B180>C$20,"",#REF!-#REF!) ->  | M180: =IF(B180>C$20,"",IF(B180=C$20,H180+J180+K180+L180,IF(AND(C$23=2,MONTH(#REF!)=7),2*C$30,IF(AND(C$24=2,MONTH(#REF!)=12),2*C$30,C$30)))) -> 
F181: =IF(B181>C$20,"",#REF!-#REF!) ->  | M181: =IF(B181>C$20,"",IF(B181=C$20,H181+J181+K181+L181,IF(AND(C$23=2,MONTH(#REF!)=7),2*C$30,IF(AND(C$24=2,MONTH(#REF!)=12),2*C$30,C$30)))) -> 
F182: =IF(B182>C$20,"",#REF!-#REF!) ->  | M182: =IF(B182>C$20,"",IF(B182=C$20,H182+J182+K182+L182,IF(AND(C$23=2,MONTH(#REF!)=7),2*C$30,IF(AND(C$24=2,MONTH(#REF!)=12),2*C$30,C$30)))) -> 
F183: =IF(B183>C$20,"",#REF!-#REF!) ->  | M183: =IF(B183>C$20,"",IF(B183=C$20,H183+J183+K183+L183,IF(AND(C$23=2,MONTH(#REF!)=7),2*C$30,IF(AND(C$24=2,MONTH(#REF!)=12),2*C$30,C$30)))) -> 
F184: =IF(B184>C$20,"",#REF!-#REF!) ->  | M184: =IF(B184>C$20,"",IF(B184=C$20,H184+J184+K184+L184,IF(AND(C$23=2,MONTH(#REF!)=7),2*C$30,IF(AND(C$24=2,MONTH(#REF!)=12),2*C$30,C$30)))) -> 
F185: =IF(B185>C$20,"",#REF!-#REF!) ->  | M185: =IF(B185>C$20,"",IF(B185=C$20,H185+J185+K185+L185,IF(AND(C$23=2,MONTH(#REF!)=7),2*C$30,IF(AND(C$24=2,MONTH(#REF!)=12),2*C$30,C$30)))) -> 
F186: =IF(B186>C$20,"",#REF!-#REF!) ->  | M186: =IF(B186>C$20,"",IF(B186=C$20,H186+J186+K186+L186,IF(AND(C$23=2,MONTH(#REF!)=7),2*C$30,IF(AND(C$24=2,MONTH(#REF!)=12),2*C$30,C$30)))) -> 
F187: =IF(B187>C$20,"",#REF!-#REF!) ->  | M187: =IF(B187>C$20,"",IF(B187=C$20,H187+J187+K187+L187,IF(AND(C$23=2,MONTH(#REF!)=7),2*C$30,IF(AND(C$24=2,MONTH(#REF!)=12),2*C$30,C$30)))) -> 
F188: =IF(B188>C$20,"",#REF!-#REF!) ->  | M188: =IF(B188>C$20,"",IF(B188=C$20,H188+J188+K188+L188,IF(AND(C$23=2,MONTH(#REF!)=7),2*C$30,IF(AND(C$24=2,MONTH(#REF!)=12),2*C$30,C$30)))) -> 
F189: =IF(B189>C$20,"",#REF!-#REF!) ->  | M189: =IF(B189>C$20,"",IF(B189=C$20,H189+J189+K189+L189,IF(AND(C$23=2,MONTH(#REF!)=7),2*C$30,IF(AND(C$24=2,MONTH(#REF!)=12),2*C$30,C$30)))) -> 
F190: =IF(B190>C$20,"",#REF!-#REF!) ->  | M190: =IF(B190>C$20,"",IF(B190=C$20,H190+J190+K190+L190,IF(AND(C$23=2,MONTH(#REF!)=7),2*C$30,IF(AND(C$24=2,MONTH(#REF!)=12),2*C$30,C$30)))) -> 
F191: =IF(B191>C$20,"",#REF!-#REF!) ->  | M191: =IF(B191>C$20,"",IF(B191=C$20,H191+J191+K191+L191,IF(AND(C$23=2,MONTH(#REF!)=7),2*C$30,IF(AND(C$24=2,MONTH(#REF!)=12),2*C$30,C$30)))) -> 
F192: =IF(B192>C$20,"",#REF!-#REF!) ->  | M192: =IF(B192>C$20,"",IF(B192=C$20,H192+J192+K192+L192,IF(AND(C$23=2,MONTH(#REF!)=7),2*C$30,IF(AND(C$24=2,MONTH(#REF!)=12),2*C$30,C$30)))) -> 
F193: =IF(B193>C$20,"",#REF!-#REF!) ->  | M193: =IF(B193>C$20,"",IF(B193=C$20,H193+J193+K193+L193,IF(AND(C$23=2,MONTH(#REF!)=7),2*C$30,IF(AND(C$24=2,MONTH(#REF!)=12),2*C$30,C$30)))) -> 
F194: =IF(B194>C$20,"",#REF!-#REF!) ->  | M194: =IF(B194>C$20,"",IF(B194=C$20,H194+J194+K194+L194,IF(AND(C$23=2,MONTH(#REF!)=7),2*C$30,IF(AND(C$24=2,MONTH(#REF!)=12),2*C$30,C$30)))) -> 
F195: =IF(B195>C$20,"",#REF!-#REF!) ->  | M195: =IF(B195>C$20,"",IF(B195=C$20,H195+J195+K195+L195,IF(AND(C$23=2,MONTH(#REF!)=7),2*C$30,IF(AND(C$24=2,MONTH(#REF!)=12),2*C$30,C$30)))) -> 
F196: =IF(B196>C$20,"",#REF!-#REF!) ->  | M196: =IF(B196>C$20,"",IF(B196=C$20,H196+J196+K196+L196,IF(AND(C$23=2,MONTH(#REF!)=7),2*C$30,IF(AND(C$24=2,MONTH(#REF!)=12),2*C$30,C$30)))) -> 
F197: =IF(B197>C$20,"",#REF!-#REF!) ->  | M197: =IF(B197>C$20,"",IF(B197=C$20,H197+J197+K197+L197,IF(AND(C$23=2,MONTH(#REF!)=7),2*C$30,IF(AND(C$24=2,MONTH(#REF!)=12),2*C$30,C$30)))) -> 
F198: =IF(B198>C$20,"",#REF!-#REF!) ->  | M198: =IF(B198>C$20,"",IF(B198=C$20,H198+J198+K198+L198,IF(AND(C$23=2,MONTH(#REF!)=7),2*C$30,IF(AND(C$24=2,MONTH(#REF!)=12),2*C$30,C$30)))) -> 
F199: =IF(B199>C$20,"",#REF!-#REF!) ->  | M199: =IF(B199>C$20,"",IF(B199=C$20,H199+J199+K199+L199,IF(AND(C$23=2,MONTH(#REF!)=7),2*C$30,IF(AND(C$24=2,MONTH(#REF!)=12),2*C$30,C$30)))) -> 
F200: =IF(B200>C$20,"",#REF!-#REF!) ->  | M200: =IF(B200>C$20,"",IF(B200=C$20,H200+J200+K200+L200,IF(AND(C$23=2,MONTH(#REF!)=7),2*C$30,IF(AND(C$24=2,MONTH(#REF!)=12),2*C$30,C$30)))) -> 
F201: =IF(B201>C$20,"",#REF!-#REF!) ->  | M201: =IF(B201>C$20,"",IF(B201=C$20,H201+J201+K201+L201,IF(AND(C$23=2,MONTH(#REF!)=7),2*C$30,IF(AND(C$24=2,MONTH(#REF!)=12),2*C$30,C$30)))) -> 
F202: =IF(B202>C$20,"",#REF!-#REF!) ->  | M202: =IF(B202>C$20,"",IF(B202=C$20,H202+J202+K202+L202,IF(AND(C$23=2,MONTH(#REF!)=7),2*C$30,IF(AND(C$24=2,MONTH(#REF!)=12),2*C$30,C$30)))) -> 
F203: =IF(B203>C$20,"",#REF!-#REF!) ->  | M203: =IF(B203>C$20,"",IF(B203=C$20,H203+J203+K203+L203,IF(AND(C$23=2,MONTH(#REF!)=7),2*C$30,IF(AND(C$24=2,MONTH(#REF!)=12),2*C$30,C$30)))) -> 
F204: =IF(B204>C$20,"",#REF!-#REF!) ->  | M204: =IF(B204>C$20,"",IF(B204=C$20,H204+J204+K204+L204,IF(AND(C$23=2,MONTH(#REF!)=7),2*C$30,IF(AND(C$24=2,MONTH(#REF!)=12),2*C$30,C$30)))) -> 
F205: =IF(B205>C$20,"",#REF!-#REF!) ->  | M205: =IF(B205>C$20,"",IF(B205=C$20,H205+J205+K205+L205,IF(AND(C$23=2,MONTH(#REF!)=7),2*C$30,IF(AND(C$24=2,MONTH(#REF!)=12),2*C$30,C$30)))) -> 
F206: =IF(B206>C$20,"",#REF!-#REF!) ->  | M206: =IF(B206>C$20,"",IF(B206=C$20,H206+J206+K206+L206,IF(AND(C$23=2,MONTH(#REF!)=7),2*C$30,IF(AND(C$24=2,MONTH(#REF!)=12),2*C$30,C$30)))) -> 
... 191 more rows

Sheet Feriados (hidden)
A1: Feriados del Año 2024 | B1: Cantidad días
A2: 2024-01-01 | B2: 1
A3: 2024-03-28 | B3: 2
A4: 2024-03-29 | B4: 1
A5: 2024-05-01 | B5: 1
A6: 2024-06-07 | B6: 1
A7: 2024-06-29 | B7: 1
A8: 2024-07-23 | B8: 1
A9: 2024-07-28 | B9: 1
A10: 2024-07-29 | B10: 2
A11: 2024-08-06 | B11: 1
A12: 2024-08-30 | B12: 1
A13: 2024-10-08 | B13: 1
A14: 2024-11-01 | B14: 1
A15: 2024-12-08 | B15: 3
A16: 2024-12-09 | B16: 2
A17: 2024-12-25 | B17: 1
A18: 2025-01-01 | B18: 1

Sheet Proceso Prima de Seguro (hidden)
C2: Proceso de Cálculo de la Prima de Seguros
B7: 1) Datos esenciales del préstamo | G7: 3) Calculo del valor presente del Seguro
B9: Producto | C9: ='Vista Principal'!C9 -> Préstamos Personales (LD ) | G9: Suma de Prima Mensual | H9: =SUM(L38:L397) -> 248.7246791
B10: Tipo de Seguro | C10: ='Vista Principal'!C10 -> Seguro de Desgravamen | G10: VPN - Valor Presente | H10: =NPV(C16,L38:L397) -> 245.3235457
B11: Tarifa | C11: ='Vista Principal'!C11 -> TARIFA TITULAR
B12: Monto inicial | C12: ='Vista Principal'!C12 -> 5000 | G12: 4) Calculo del Monto Adicional del Seguro y MAF
B13: =C10 -> Seguro de Desgravamen | C13: =INDEX(_xlfn._xlws.FILTER(TarifarioPrincipal[],(TarifarioPrincipal[TARIFA]='Proceso Prima de Seguro'!C11)*(TarifarioPrincipal[PRODUCTO]='Proceso Prima de Seguro'!C9)*(TarifarioPrincipal[TIPO_SEGURO]='Proceso Prima de Seguro'!C10)*(TarifarioPrincipal[Plazo]='Proceso Prima de Seguro'!C20)),0,5) -> 0.006601
B14: Monto adicional Seguro de Desgravamen/ Vida | G14: Monto inicial | H14: =C12 -> 5000
B15: MAF Inicial | C15: =C12+C14 -> 5000 | G15: Monto adicional de Desgravamen / Vida | H15: =H10 -> 245.3235457
B16: Costo Capital | C16: =INDEX(_xlfn._xlws.FILTER(Tabla2[],Tabla2[TARIFA]=C11),0,2) -> 0.002871 | G16: Prima de Seguro de Desgravamen / Vida | H16: =H15/H14 -> 0.04906470914
B17: Moneda | C17: ='Vista Principal'!C19 -> Soles | G17: MAF Inicial | H17: =H14+H15 -> 5245.323546
B18: Plazo Remanente Meses | C18: ='Vista Principal'!C20 -> 12
B19: Plazo en Días | C19: =(OFFSET(C37,(COUNT(C38:C397)),0))-$C$21 -> 371
B20: Plazo Rango | C20: =IF(C19<=370,"0-370",IF(AND(C19>=371,C19<=553),"371-553",IF(AND(C19>=554,C19<=736),"554-736",IF(AND(C19>=737,C19<=1101),"737-1101",IF(AND(C19>=1102,C19<=1466),"1102-1466",IF(AND(C19>=1467,C19<=1831),"1467-1831","1832-2257")))))) -> 371-553
B21: Fecha de Desembolso | C21: ='Vista Principal'!C21 -> 2024-04-01
B22: Fecha de 1er Pago | C22: ='Vista Principal'!C22 -> 2024-05-06
B23: Cuota Julio | C23: ='Vista Principal'!C23 -> 1
B24: Cuota Diciembre | C24: ='Vista Principal'!C24 -> 1
B25: TEA | C25: ='Vista Principal'!C25 -> 0.834
B26: TEA TOTAL | C26: =(1+(((1+C25)^(30/360)-1)+C13))^12-1 -> 0.9769831877
B27: Monto del Bien | C27: 0
B28: Seguro del Bien | C28: 0
B29: Portes | C29: 0
B30: Cuota | C30: =(C15+(C28*C27+C29)*R36)/Q36 -> 600.4099845
B32: TCEA | C32: 0.9236764758
W33: =C15-W36-C14 -> -69.47
B35: 2) Creación de Cronograma de prima mensual
Q36: =SUM(Q38:Q397) -> 8.327642993 | R36: =SUM(R38:R397) -> 8.327642993 | W36: =SUM(W38:W397) -> 5069.47
B37: N° Cuota | C37: Fecha de pago | D37: Día | E37: Fecha de pago | F37: Feriados | G37: Días | H37: Dias Acumulados | I37: Saldo Inicial | J37: Amortización | K37: Interés | L37: Seguro Desgravamen | M37: Seguro del Bien | N37: Portes | O37: Cuota Constante | P37: Saldo Final | Q37: Factor Cronograma | R37: Factor Cronograma 2 | T37: Vector i,1 Cuota | U37: Vector i,2 Días Acum | V37: Vector i,3 Factor | W37: Vector i,4 Calculo VA | X37: VPN - Valor Presente | Y37: VPN - Valor Presente
B38: 1 | C38: =C22 -> 2024-05-06 | D38: =IF(B38<=$C$18,WEEKDAY(C38,2),"") -> 1 | E38: =IF(D38=7,C38+1,C38) -> 2024-05-06 | G38: =E38-C21 -> 35 | H38: =G38 -> 35 | I38: =C15 -> 5000 | J38: =IF(B38>C$18,"",O38-N38-M38-L38-K38) -> 258.1912868 | K38: =IF(B38>C$18,"",((1+C$25)^(G38/360)-1)*I38) -> 303.6917217 | L38: =IF(B38>C$18,"",((1+C$13)^(G38/30)-1)*I38) -> 38.52697603 | M38: =IF(B38>C$18,"",C$27*C$28) -> 0 | N38: =IF(B38>C$18,"",C$29) -> 0 | O38: =IF(B38>C$18,"",IF(B38=C$18,I38+K38+L38+M38+N38,IF(AND(C$23=2,MONTH(E38)=7),2*C$30,IF(AND(C$24=2,MONTH(E38)=12),2*C$30,C$30)))) -> 600.4099845 | P38: =IF(B38>C$18,"",I38-J38) -> 4741.808713 | Q38: =IFERROR(IF(AND(MONTH(E38)=7,C$23=2),2/(1+C$26)^(H38/360),IF(AND(MONTH(E38)=12,C$24=2),2/(1+C$26)^(H38/360),1/(1+C$26)^(H38/360))),"") -> 0.9358838067 | R38: =IFERROR(1/(1+C$26)^(H38/360),"") -> 0.9358838067 | T38: =IFERROR(J38+K38+L38+M38+N38,"") -> 600.4099845 | U38: =H38 -> 35 | V38: =IFERROR((1+C$32)^(U38/360),"") -> 1.065672964 | W38: =IFERROR(ROUND(T38/V38,2),"") -> 563.41 | X38: =L38/(1+$I$9) -> 38.52697603 | Y38: =L38/(1+$Q$30) -> 38.52697603
B39: 2 | C39: =IF(B39>$C$18,"",IF(WEEKDAY(F39,2)=7,F39+1,F39)) -> 2024-06-06 | D39: 4 | E39: =IF(D39=7,C39+1,C39) -> 2024-06-06 | F39: =IF(B38>$C$18,"",IF(COUNTIF(Feriados!$A$2:$B$18,EDATE($C$38,B38))=0,EDATE($C$38,B38),EDATE($C$38,B38)+VLOOKUP(EDATE($C$38,B38),Feriados!$A$2:$B$18,2,FALSE))) -> 2024-06-06 | G39: =IF(B39>C$18,"",E39-E38) -> 31 | H39: =IFERROR(G39+H38,"") -> 66 | I39: =IF(B39>C$18,"",P38) -> 4741.808713 | J39: =IF(B39>C$18,"",O39-N39-M39-L39-K39) -> 313.8341875 | K39: 254.2282108 | L39: =IF(B39>C$18,"",((1+C$13)^(G39/30)-1)*I39) -> 32.34758613 | M39: 0 | N39: 0 | O39: 600.4099845 | P39: 4427.974526 | Q39: 0.882536727 | R39: 0.882536727 | T39: 600.4099845 | U39: 66 | V39: 1.127433339 | W39: 532.55 | X39: =IF(O39="",0,L39/((1+$I$9)^B39)) -> 32.34758613 | Y39: =IF(O39="",0,L39/((1+$Q$30)^B39)) -> 32.34758613
B40: 3 | C40: =IF(B40>$C$18,"",IF(WEEKDAY(F40,2)=7,F40+1,F40)) -> 2024-07-06 | D40: 6 | E40: 2024-07-06 | F40: =IF(B39>$C$18,"",IF(COUNTIF(Feriados!$A$2:$B$18,EDATE($C$38,B39))=0,EDATE($C$38,B39),EDATE($C$38,B39)+VLOOKUP(EDATE($C$38,B39),Feriados!$A$2:$B$18,2,FALSE))) -> 2024-07-06 | G40: 30 | H40: 96 | I40: 4427.974526 | J40: 341.6319168 | K40: 229.5490079 | L40: 29.22905984 | M40: 0 | N40: 0 | O40: 600.4099845 | P40: 4086.342609 | Q40: 0.8338076455 | R40: 0.8338076455 | T40: 600.4099845 | U40: 96 | V40: 1.190607304 | W40: 504.29 | X40: 29.22905984 | Y40: 29.22905984
B41: 4 | C41: 2024-08-07 | D41: 3 | E41: 2024-08-07 | F41: =IF(B40>$C$18,"",IF(COUNTIF(Feriados!$A$2:$B$18,EDATE($C$38,B40))=0,EDATE($C$38,B40),EDATE($C$38,B40)+VLOOKUP(EDATE($C$38,B40),Feriados!$A$2:$B$18,2,FALSE))) -> 2024-08-07 | G41: =IF(B41>C$18,"",E41-E40) -> 32 | H41: 128 | I41: 4086.342609 | J41: 345.2859691 | K41: 226.3454868 | L41: 28.77852862 | M41: 0 | N41: 0 | O41: 600.4099845 | P41: 3741.05664 | Q41: 0.7847918737 | R41: 0.7847918737 | T41: 600.4099845 | U41: 128 | V41: 1.261899369 | W41: 475.8 | X41: 28.77852862 | Y41: 28.77852862
B42: 5 | C42: 2024-09-06 | D42: 5 | E42: 2024-09-06 | F42: =IF(B41>$C$18,"",IF(COUNTIF(Feriados!$A$2:$B$18,EDATE($C$38,B41))=0,EDATE($C$38,B41),EDATE($C$38,B41)+VLOOKUP(EDATE($C$38,B41),Feriados!$A$2:$B$18,2,FALSE))) -> 2024-09-06 | G42: 30 | H42: 158 | I42: 3741.05664 | J42: 381.7765206 | K42: 193.938749 | L42: 24.69471488 | M42: 0 | N42: 0 | O42: 600.4099845 | P42: 3359.280119 | Q42: 0.7414597539 | R42: 0.7414597539 | T42: 600.4099845 | U42: 158 | V42: 1.332607928 | W42: 450.55 | X42: 24.69471488 | Y42: 24.69471488
B43: 6 | C43: 2024-10-07 | D43: 1 | E43: 2024-10-07 | F43: =IF(B42>$C$18,"",IF(COUNTIF(Feriados!$A$2:$B$18,EDATE($C$38,B42))=0,EDATE($C$38,B42),EDATE($C$38,B42)+VLOOKUP(EDATE($C$38,B42),Feriados!$A$2:$B$18,2,FALSE))) -> 2024-10-06 | G43: 31 | H43: 189 | I43: 3359.280119 | J43: 397.3886406 | K43: 180.1050667 | L43: 22.91627722 | M43: 0 | N43: 0 | O43: 600.4099845 | P43: 2961.891479 | Q43: 0.699195199 | R43: 0.699195199 | T43: 600.4099845 | U43: 189 | V43: 1.409838343 | W43: 425.87 | X43: 22.91627722 | Y43: 22.91627722
B44: 7 | C44: 2024-11-06 | D44: 3 | E44: 2024-11-06 | F44: =IF(B43>$C$18,"",IF(COUNTIF(Feriados!$A$2:$B$18,EDATE($C$38,B43))=0,EDATE($C$38,B43),EDATE($C$38,B43)+VLOOKUP(EDATE($C$38,B43),Feriados!$A$2:$B$18,2,FALSE))) -> 2024-11-06 | G44: 30 | H44: 219 | I44: 2961.891479 | J44: 427.312206 | K44: 153.5463328 | L44: 19.55144565 | M44: 0 | N44: 0 | O44: 600.4099845 | P44: 2534.579273 | Q44: 0.6605892818 | R44: 0.6605892818 | T44: 600.4099845 | U44: 219 | V44: 1.488836432 | W44: 403.27 | X44: 19.55144565 | Y44: 19.55144565
B45: 8 | C45: 2024-12-06 | D45: 5 | E45: 2024-12-06 | F45: =IF(B44>$C$18,"",IF(COUNTIF(Feriados!$A$2:$B$18,EDATE($C$38,B44))=0,EDATE($C$38,B44),EDATE($C$38,B44)+VLOOKUP(EDATE($C$38,B44),Feriados!$A$2:$B$18,2,FALSE))) -> 2024-12-06 | G45: 30 | H45: 249 | I45: 2534.579273 | J45: 452.2850297 | K45: 131.3941971 | L45: 16.73075778 | M45: 0 | N45: 0 | O45: 600.4099845 | P45: 2082.294243 | Q45: 0.6241149823 | R45: 0.6241149823 | T45: 600.4099845 | U45: 249 | V45: 1.572261055 | W45: 381.88 | X45: 16.73075778 | Y45: 16.73075778
B46: 9 | C46: 2025-01-06 | D46: 1 | E46: 2025-01-06 | F46: =IF(B45>$C$18,"",IF(COUNTIF(Feriados!$A$2:$B$18,EDATE($C$38,B45))=0,EDATE($C$38,B45),EDATE($C$38,B45)+VLOOKUP(EDATE($C$38,B45),Feriados!$A$2:$B$18,2,FALSE))) -> 2025-01-06 | G46: 31 | H46: 280 | I46: 2082.294243 | J46: 474.5645174 | K46: 111.6405093 | L46: 14.20495774 | M46: 0 | N46: 0 | O46: 600.4099845 | P46: 1607.729725 | Q46: 0.5885392928 | R46: 0.5885392928 | T46: 600.4099845 | U46: 280 | V46: 1.663380409 | W46: 360.96 | X46: 14.20495774 | Y46: 14.20495774
B47: 10 | C47: 2025-02-06 | D47: 4 | E47: 2025-02-06 | F47: =IF(B46>$C$18,"",IF(COUNTIF(Feriados!$A$2:$B$18,EDATE($C$38,B46))=0,EDATE($C$38,B46),EDATE($C$38,B46)+VLOOKUP(EDATE($C$38,B46),Feriados!$A$2:$B$18,2,FALSE))) -> 2025-02-06 | G47: 31 | H47: 311 | I47: 1607.729725 | J47: 503.2452832 | K47: 86.19711935 | L47: 10.96758197 | M47: 0 | N47: 0 | O47: 600.4099845 | P47: 1104.484442 | Q47: 0.5549914823 | R47: 0.5549914823 | T47: 600.4099845 | U47: 311 | V47: 1.759780525 | W47: 341.18 | X47: 10.96758197 | Y47: 10.96758197
B48: 11 | C48: 2025-03-06 | D48: 4 | E48: 2025-03-06 | F48: =IF(B47>$C$18,"",IF(COUNTIF(Feriados!$A$2:$B$18,EDATE($C$38,B47))=0,EDATE($C$38,B47),EDATE($C$38,B47)+VLOOKUP(EDATE($C$38,B47),Feriados!$A$2:$B$18,2,FALSE))) -> 2025-03-06 | G48: 28 | H48: 339 | I48: 1104.484442 | J48: 540.2574817 | K48: 53.34934152 | L48: 6.803161268 | M48: 0 | N48: 0 | O48: 600.4099845 | P48: 564.2269606 | Q48: 0.5263369557 | R48: 0.5263369557 | T48: 600.4099845 | U48: 339 | V48: 1.851644739 | W48: 324.26 | X48: 6.803161268 | Y48: 6.803161268
B49: 12 | C49: 2025-04-07 | D49: 1 | E49: 2025-04-07 | F49: =IF(B48>$C$18,"",IF(COUNTIF(Feriados!$A$2:$B$18,EDATE($C$38,B48))=0,EDATE($C$38,B48),EDATE($C$38,B48)+VLOOKUP(EDATE($C$38,B48),Feriados!$A$2:$B$18,2,FALSE))) -> 2025-04-06 | G49: 32 | H49: 371 | I49: 564.2269606 | J49: 564.2269606 | K49: 31.25294139 | L49: 3.973631995 | M49: 0 | N49: 0 | O49: 599.453534 | P49: 0 | Q49: 0.4953959919 | R49: 0.4953959919 | T49: 599.453534 | U49: 371 | V49: 1.962518893 | W49: 305.45 | X49: 3.973631995 | Y49: 3.973631995
B50: 13 | F50: =IF(B49>$C$18,"",IF(COUNTIF(Feriados!$A$2:$B$18,EDATE($C$38,B49))=0,EDATE($C$38,B49),EDATE($C$38,B49)+VLOOKUP(EDATE($C$38,B49),Feriados!$A$2:$B$18,2,FALSE))) -> 2025-05-06 | I50: =IF(B50>C$18,"",P49) ->  | J50: =IF(B50>C$18,"",O50-N50-M50-L50-K50) ->  | P50: =IF(B50>C$18,"",I50-J50) ->  | T50: =IFERROR(J50+K50+L50+M50+N50,"") ->  | X50: 0 | Y50: =IF(O50="",0,L50/((1+$Q$30)^B50)) -> 0
B51: 14 | F51: =IF(B50>$C$18,"",IF(COUNTIF(Feriados!$A$2:$B$17,EDATE($C$38,B50))=0,EDATE($C$38,B50),EDATE($C$38,B50)+VLOOKUP(EDATE($C$38,B50),Feriados!$A$2:$B$17,2,FALSE))) ->  | X51: 0 | Y51: 0
B52: 15 | F52: =IF(B51>$C$18,"",IF(COUNTIF(Feriados!$A$2:$B$17,EDATE($C$38,B51))=0,EDATE($C$38,B51),EDATE($C$38,B51)+VLOOKUP(EDATE($C$38,B51),Feriados!$A$2:$B$17,2,FALSE))) ->  | X52: 0 | Y52: 0
B53: 16 | F53: =IF(B52>$C$18,"",IF(COUNTIF(Feriados!$A$2:$B$17,EDATE($C$38,B52))=0,EDATE($C$38,B52),EDATE($C$38,B52)+VLOOKUP(EDATE($C$38,B52),Feriados!$A$2:$B$17,2,FALSE))) ->  | X53: 0 | Y53: 0
B54: 17 | F54: =IF(B53>$C$18,"",IF(COUNTIF(Feriados!$A$2:$B$17,EDATE($C$38,B53))=0,EDATE($C$38,B53),EDATE($C$38,B53)+VLOOKUP(EDATE($C$38,B53),Feriados!$A$2:$B$17,2,FALSE))) ->  | X54: 0 | Y54: 0
B55: 18 | F55: =IF(B54>$C$18,"",IF(COUNTIF(Feriados!$A$2:$B$17,EDATE($C$38,B54))=0,EDATE($C$38,B54),EDATE($C$38,B54)+VLOOKUP(EDATE($C$38,B54),Feriados!$A$2:$B$17,2,FALSE))) ->  | X55: 0 | Y55: 0
B56: 19 | F56: =IF(B55>$C$18,"",IF(COUNTIF(Feriados!$A$2:$B$17,EDATE($C$38,B55))=0,EDATE($C$38,B55),EDATE($C$38,B55)+VLOOKUP(EDATE($C$38,B55),Feriados!$A$2:$B$17,2,FALSE))) ->  | X56: 0 | Y56: 0
B57: 20 | F57: =IF(B56>$C$18,"",IF(COUNTIF(Feriados!$A$2:$B$17,EDATE($C$38,B56))=0,EDATE($C$38,B56),EDATE($C$38,B56)+VLOOKUP(EDATE($C$38,B56),Feriados!$A$2:$B$17,2,FALSE))) ->  | X57: 0 | Y57: 0
B58: 21 | F58: =IF(B57>$C$18,"",IF(COUNTIF(Feriados!$A$2:$B$17,EDATE($C$38,B57))=0,EDATE($C$38,B57),EDATE($C$38,B57)+VLOOKUP(EDATE($C$38,B57),Feriados!$A$2:$B$17,2,FALSE))) ->  | X58: 0 | Y58: 0
B59: 22 | F59: =IF(B58>$C$18,"",IF(COUNTIF(Feriados!$A$2:$B$17,EDATE($C$38,B58))=0,EDATE($C$38,B58),EDATE($C$38,B58)+VLOOKUP(EDATE($C$38,B58),Feriados!$A$2:$B$17,2,FALSE))) ->  | X59: 0 | Y59: 0
B60: 23 | F60: =IF(B59>$C$18,"",IF(COUNTIF(Feriados!$A$2:$B$17,EDATE($C$38,B59))=0,EDATE($C$38,B59),EDATE($C$38,B59)+VLOOKUP(EDATE($C$38,B59),Feriados!$A$2:$B$17,2,FALSE))) ->  | X60: 0 | Y60: 0
B61: 24 | F61: =IF(B60>$C$18,"",IF(COUNTIF(Feriados!$A$2:$B$17,EDATE($C$38,B60))=0,EDATE($C$38,B60),EDATE($C$38,B60)+VLOOKUP(EDATE($C$38,B60),Feriados!$A$2:$B$17,2,FALSE))) ->  | X61: 0 | Y61: 0
B62: 25 | F62: =IF(B61>$C$18,"",IF(COUNTIF(Feriados!$A$2:$B$17,EDATE($C$38,B61))=0,EDATE($C$38,B61),EDATE($C$38,B61)+VLOOKUP(EDATE($C$38,B61),Feriados!$A$2:$B$17,2,FALSE))) ->  | X62: 0 | Y62: 0
B63: 26 | F63: =IF(B62>$C$18,"",IF(COUNTIF(Feriados!$A$2:$B$17,EDATE($C$38,B62))=0,EDATE($C$38,B62),EDATE($C$38,B62)+VLOOKUP(EDATE($C$38,B62),Feriados!$A$2:$B$17,2,FALSE))) ->  | X63: 0 | Y63: 0
B64: 27 | F64: =IF(B63>$C$18,"",IF(COUNTIF(Feriados!$A$2:$B$17,EDATE($C$38,B63))=0,EDATE($C$38,B63),EDATE($C$38,B63)+VLOOKUP(EDATE($C$38,B63),Feriados!$A$2:$B$17,2,FALSE))) ->  | X64: 0 | Y64: 0
B65: 28 | F65: =IF(B64>$C$18,"",IF(COUNTIF(Feriados!$A$2:$B$17,EDATE($C$38,B64))=0,EDATE($C$38,B64),EDATE($C$38,B64)+VLOOKUP(EDATE($C$38,B64),Feriados!$A$2:$B$17,2,FALSE))) ->  | X65: 0 | Y65: 0
B66: 29 | F66: =IF(B65>$C$18,"",IF(COUNTIF(Feriados!$A$2:$B$17,EDATE($C$38,B65))=0,EDATE($C$38,B65),EDATE($C$38,B65)+VLOOKUP(EDATE($C$38,B65),Feriados!$A$2:$B$17,2,FALSE))) ->  | X66: 0 | Y66: 0
B67: 30 | F67: =IF(B66>$C$18,"",IF(COUNTIF(Feriados!$A$2:$B$17,EDATE($C$38,B66))=0,EDATE($C$38,B66),EDATE($C$38,B66)+VLOOKUP(EDATE($C$38,B66),Feriados!$A$2:$B$17,2,FALSE))) ->  | X67: 0 | Y67: 0
B68: 31 | F68: =IF(B67>$C$18,"",IF(COUNTIF(Feriados!$A$2:$B$17,EDATE($C$38,B67))=0,EDATE($C$38,B67),EDATE($C$38,B67)+VLOOKUP(EDATE($C$38,B67),Feriados!$A$2:$B$17,2,FALSE))) ->  | X68: 0 | Y68: 0
B69: 32 | F69: =IF(B68>$C$18,"",IF(COUNTIF(Feriados!$A$2:$B$17,EDATE($C$38,B68))=0,EDATE($C$38,B68),EDATE($C$38,B68)+VLOOKUP(EDATE($C$38,B68),Feriados!$A$2:$B$17,2,FALSE))) ->  | X69: 0 | Y69: 0
B70: 33 | F70: =IF(B69>$C$18,"",IF(COUNTIF(Feriados!$A$2:$B$17,EDATE($C$38,B69))=0,EDATE($C$38,B69),EDATE($C$38,B69)+VLOOKUP(EDATE($C$38,B69),Feriados!$A$2:$B$17,2,FALSE))) ->  | X70: 0 | Y70: 0
B71: 34 | F71: =IF(B70>$C$18,"",IF(COUNTIF(Feriados!$A$2:$B$17,EDATE($C$38,B70))=0,EDATE($C$38,B70),EDATE($C$38,B70)+VLOOKUP(EDATE($C$38,B70),Feriados!$A$2:$B$17,2,FALSE))) ->  | X71: 0 | Y71: 0
B72: 35 | F72: =IF(B71>$C$18,"",IF(COUNTIF(Feriados!$A$2:$B$17,EDATE($C$38,B71))=0,EDATE($C$38,B71),EDATE($C$38,B71)+VLOOKUP(EDATE($C$38,B71),Feriados!$A$2:$B$17,2,FALSE))) ->  | X72: 0 | Y72: 0
B73: 36 | F73: =IF(B72>$C$18,"",IF(COUNTIF(Feriados!$A$2:$B$17,EDATE($C$38,B72))=0,EDATE($C$38,B72),EDATE($C$38,B72)+VLOOKUP(EDATE($C$38,B72),Feriados!$A$2:$B$17,2,FALSE))) ->  | X73: 0 | Y73: 0
B74: 37 | F74: =IF(B73>$C$18,"",IF(COUNTIF(Feriados!$A$2:$B$17,EDATE($C$38,B73))=0,EDATE($C$38,B73),EDATE($C$38,B73)+VLOOKUP(EDATE($C$38,B73),Feriados!$A$2:$B$17,2,FALSE))) ->  | X74: 0 | Y74: 0
B75: 38 | F75: =IF(B74>$C$18,"",IF(COUNTIF(Feriados!$A$2:$B$17,EDATE($C$38,B74))=0,EDATE($C$38,B74),EDATE($C$38,B74)+VLOOKUP(EDATE($C$38,B74),Feriados!$A$2:$B$17,2,FALSE))) ->  | X75: 0 | Y75: 0
B76: 39 | F76: =IF(B75>$C$18,"",IF(COUNTIF(Feriados!$A$2:$B$17,EDATE($C$38,B75))=0,EDATE($C$38,B75),EDATE($C$38,B75)+VLOOKUP(EDATE($C$38,B75),Feriados!$A$2:$B$17,2,FALSE))) ->  | X76: 0 | Y76: 0
B77: 40 | F77: =IF(B76>$C$18,"",IF(COUNTIF(Feriados!$A$2:$B$17,EDATE($C$38,B76))=0,EDATE($C$38,B76),EDATE($C$38,B76)+VLOOKUP(EDATE($C$38,B76),Feriados!$A$2:$B$17,2,FALSE))) ->  | X77: 0 | Y77: 0
B78: 41 | F78: =IF(B77>$C$18,"",IF(COUNTIF(Feriados!$A$2:$B$17,EDATE($C$38,B77))=0,EDATE($C$38,B77),EDATE($C$38,B77)+VLOOKUP(EDATE($C$38,B77),Feriados!$A$2:$B$17,2,FALSE))) ->  | X78: 0 | Y78: 0
B79: 42 | F79: =IF(B78>$C$18,"",IF(COUNTIF(Feriados!$A$2:$B$17,EDATE($C$38,B78))=0,EDATE($C$38,B78),EDATE($C$38,B78)+VLOOKUP(EDATE($C$38,B78),Feriados!$A$2:$B$17,2,FALSE))) ->  | X79: 0 | Y79: 0
B80: 43 | F80: =IF(B79>$C$18,"",IF(COUNTIF(Feriados!$A$2:$B$17,EDATE($C$38,B79))=0,EDATE($C$38,B79),EDATE($C$38,B79)+VLOOKUP(EDATE($C$38,B79),Feriados!$A$2:$B$17,2,FALSE))) ->  | X80: 0 | Y80: 0
B81: 44 | F81: =IF(B80>$C$18,"",IF(COUNTIF(Feriados!$A$2:$B$17,EDATE($C$38,B80))=0,EDATE($C$38,B80),EDATE($C$38,B80)+VLOOKUP(EDATE($C$38,B80),Feriados!$A$2:$B$17,2,FALSE))) ->  | X81: 0 | Y81: 0
B82: 45 | F82: =IF(B81>$C$18,"",IF(COUNTIF(Feriados!$A$2:$B$17,EDATE($C$38,B81))=0,EDATE($C$38,B81),EDATE($C$38,B81)+VLOOKUP(EDATE($C$38,B81),Feriados!$A$2:$B$17,2,FALSE))) ->  | X82: 0 | Y82: 0
B83: 46 | F83: =IF(B82>$C$18,"",IF(COUNTIF(Feriados!$A$2:$B$17,EDATE($C$38,B82))=0,EDATE($C$38,B82),EDATE($C$38,B82)+VLOOKUP(EDATE($C$38,B82),Feriados!$A$2:$B$17,2,FALSE))) ->  | X83: 0 | Y83: 0
B84: 47 | F84: =IF(B83>$C$18,"",IF(COUNTIF(Feriados!$A$2:$B$17,EDATE($C$38,B83))=0,EDATE($C$38,B83),EDATE($C$38,B83)+VLOOKUP(EDATE($C$38,B83),Feriados!$A$2:$B$17,2,FALSE))) ->  | X84: 0 | Y84: 0
B85: 48 | F85: =IF(B84>$C$18,"",IF(COUNTIF(Feriados!$A$2:$B$17,EDATE($C$38,B84))=0,EDATE($C$38,B84),EDATE($C$38,B84)+VLOOKUP(EDATE($C$38,B84),Feriados!$A$2:$B$17,2,FALSE))) ->  | X85: 0 | Y85: 0
B86: 49 | F86: =IF(B85>$C$18,"",IF(COUNTIF(Feriados!$A$2:$B$17,EDATE($C$38,B85))=0,EDATE($C$38,B85),EDATE($C$38,B85)+VLOOKUP(EDATE($C$38,B85),Feriados!$A$2:$B$17,2,FALSE))) ->  | X86: 0 | Y86: 0
B87: 50 | F87: =IF(B86>$C$18,"",IF(COUNTIF(Feriados!$A$2:$B$17,EDATE($C$38,B86))=0,EDATE($C$38,B86),EDATE($C$38,B86)+VLOOKUP(EDATE($C$38,B86),Feriados!$A$2:$B$17,2,FALSE))) ->  | X87: 0 | Y87: 0
B88: 51 | F88: =IF(B87>$C$18,"",IF(COUNTIF(Feriados!$A$2:$B$17,EDATE($C$38,B87))=0,EDATE($C$38,B87),EDATE($C$38,B87)+VLOOKUP(EDATE($C$38,B87),Feriados!$A$2:$B$17,2,FALSE))) ->  | X88: 0 | Y88: 0
B89: 52 | F89: =IF(B88>$C$18,"",IF(COUNTIF(Feriados!$A$2:$B$17,EDATE($C$38,B88))=0,EDATE($C$38,B88),EDATE($C$38,B88)+VLOOKUP(EDATE($C$38,B88),Feriados!$A$2:$B$17,2,FALSE))) ->  | X89: 0 | Y89: 0
B90: 53 | F90: =IF(B89>$C$18,"",IF(COUNTIF(Feriados!$A$2:$B$17,EDATE($C$38,B89))=0,EDATE($C$38,B89),EDATE($C$38,B89)+VLOOKUP(EDATE($C$38,B89),Feriados!$A$2:$B$17,2,FALSE))) ->  | X90: 0 | Y90: 0
B91: 54 | F91: =IF(B90>$C$18,"",IF(COUNTIF(Feriados!$A$2:$B$17,EDATE($C$38,B90))=0,EDATE($C$38,B90),EDATE($C$38,B90)+VLOOKUP(EDATE($C$38,B90),Feriados!$A$2:$B$17,2,FALSE))) ->  | X91: 0 | Y91: 0
B92: 55 | F92: =IF(B91>$C$18,"",IF(COUNTIF(Feriados!$A$2:$B$17,EDATE($C$38,B91))=0,EDATE($C$38,B91),EDATE($C$38,B91)+VLOOKUP(EDATE($C$38,B91),Feriados!$A$2:$B$17,2,FALSE))) ->  | X92: 0 | Y92: 0
B93: 56 | F93: =IF(B92>$C$18,"",IF(COUNTIF(Feriados!$A$2:$B$17,EDATE($C$38,B92))=0,EDATE($C$38,B92),EDATE($C$38,B92)+VLOOKUP(EDATE($C$38,B92),Feriados!$A$2:$B$17,2,FALSE))) ->  | X93: 0 | Y93: 0
B94: 57 | F94: =IF(B93>$C$18,"",IF(COUNTIF(Feriados!$A$2:$B$17,EDATE($C$38,B93))=0,EDATE($C$38,B93),EDATE($C$38,B93)+VLOOKUP(EDATE($C$38,B93),Feriados!$A$2:$B$17,2,FALSE))) ->  | X94: 0 | Y94: 0
B95: 58 | F95: =IF(B94>$C$18,"",IF(COUNTIF(Feriados!$A$2:$B$17,EDATE($C$38,B94))=0,EDATE($C$38,B94),EDATE($C$38,B94)+VLOOKUP(EDATE($C$38,B94),Feriados!$A$2:$B$17,2,FALSE))) ->  | X95: 0 | Y95: 0
B96: 59 | F96: =IF(B95>$C$18,"",IF(COUNTIF(Feriados!$A$2:$B$17,EDATE($C$38,B95))=0,EDATE($C$38,B95),EDATE($C$38,B95)+VLOOKUP(EDATE($C$38,B95),Feriados!$A$2:$B$17,2,FALSE))) ->  | X96: 0 | Y96: 0
B97: 60 | F97: =IF(B96>$C$18,"",IF(COUNTIF(Feriados!$A$2:$B$17,EDATE($C$38,B96))=0,EDATE($C$38,B96),EDATE($C$38,B96)+VLOOKUP(EDATE($C$38,B96),Feriados!$A$2:$B$17,2,FALSE))) ->  | X97: 0 | Y97: 0
B98: 61 | F98: =IF(B97>$C$18,"",IF(COUNTIF(Feriados!$A$2:$B$17,EDATE($C$38,B97))=0,EDATE($C$38,B97),EDATE($C$38,B97)+VLOOKUP(EDATE($C$38,B97),Feriados!$A$2:$B$17,2,FALSE))) ->  | X98: 0 | Y98: 0
B99: 62 | F99: =IF(B98>$C$18,"",IF(COUNTIF(Feriados!$A$2:$B$17,EDATE($C$38,B98))=0,EDATE($C$38,B98),EDATE($C$38,B98)+VLOOKUP(EDATE($C$38,B98),Feriados!$A$2:$B$17,2,FALSE))) ->  | X99: 0 | Y99: 0
B100: 63 | F100: =IF(B99>$C$18,"",IF(COUNTIF(Feriados!$A$2:$B$17,EDATE($C$38,B99))=0,EDATE($C$38,B99),EDATE($C$38,B99)+VLOOKUP(EDATE($C$38,B99),Feriados!$A$2:$B$17,2,FALSE))) ->  | X100: 0 | Y100: 0
B101: 64 | F101: =IF(B100>$C$18,"",IF(COUNTIF(Feriados!$A$2:$B$17,EDATE($C$38,B100))=0,EDATE($C$38,B100),EDATE($C$38,B100)+VLOOKUP(EDATE($C$38,B100),Feriados!$A$2:$B$17,2,FALSE))) ->  | X101: 0 | Y101: 0
B102: 65 | D102: =IF(B102<=$C$18,WEEKDAY(C102,2),"") ->  | F102: =IF(B101>$C$18,"",IF(COUNTIF(Feriados!$A$2:$B$17,EDATE($C$38,B101))=0,EDATE($C$38,B101),EDATE($C$38,B101)+VLOOKUP(EDATE($C$38,B101),Feriados!$A$2:$B$17,2,FALSE))) ->  | J102: =IF(B102>C$18,"",O102-N102-M102-L102-K102) ->  | K102: =IF(B102>C$18,"",((1+C$25)^(G102/360)-1)*I102) ->  | M102: =IF(B102>C$18,"",C$27*C$28) ->  | N102: =IF(B102>C$18,"",C$29) ->  | O102: =IF(B102>C$18,"",IF(B102=C$18,I102+K102+L102+M102+N102,IF(AND(C$23=2,MONTH(E102)=7),2*C$30,IF(AND(C$24=2,MONTH(E102)=12),2*C$30,C$30)))) ->  | P102: =IF(B102>C$18,"",I102-J102) ->  | Q102: =IFERROR(IF(AND(MONTH(E102)=7,C$23=2),2/(1+C$26)^(H102/360),IF(AND(MONTH(E102)=12,C$24=2),2/(1+C$26)^(H102/360),1/(1+C$26)^(H102/360))),"") ->  | R102: =IFERROR(1/(1+C$26)^(H102/360),"") ->  | U102: =H102 ->  | V102: =IFERROR((1+C$32)^(U102/360),"") ->  | W102: =IFERROR(ROUND(T102/V102,2),"") ->  | X102: 0 | Y102: 0
B103: 66 | E103: =IF(D103=7,C103+1,C103) ->  | F103: =IF(B102>$C$18,"",IF(COUNTIF(Feriados!$A$2:$B$17,EDATE($C$38,B102))=0,EDATE($C$38,B102),EDATE($C$38,B102)+VLOOKUP(EDATE($C$38,B102),Feriados!$A$2:$B$17,2,FALSE))) ->  | G103: =IF(B103>C$18,"",E103-E102) ->  | H103: =IFERROR(G103+H102,"") ->  | I103: =IF(B103>C$18,"",P102) ->  | L103: =IF(B103>C$18,"",((1+C$13)^(G103/30)-1)*I103) ->  | T103: =IFERROR(J103+K103+L103+M103+N103,"") ->  | X103: =IF(O103="",0,L103/((1+$I$9)^B103)) -> 0 | Y103: 0
B104: 67 | C104: =IF(B104>$C$18,"",IF(WEEKDAY(F104,2)=7,F104+1,F104)) ->  | F104: =IF(B103>$C$18,"",IF(COUNTIF(Feriados!$A$2:$B$17,EDATE($C$38,B103))=0,EDATE($C$38,B103),EDATE($C$38,B103)+VLOOKUP(EDATE($C$38,B103),Feriados!$A$2:$B$17,2,FALSE))) ->  | X104: 0 | Y104: =IF(O104="",0,L104/((1+$Q$30)^B104)) -> 0
B105: 68 | F105: =IF(B104>$C$18,"",IF(COUNTIF(Feriados!$A$2:$B$17,EDATE($C$38,B104))=0,EDATE($C$38,B104),EDATE($C$38,B104)+VLOOKUP(EDATE($C$38,B104),Feriados!$A$2:$B$17,2,FALSE))) ->  | X105: 0 | Y105: 0
B106: 69 | F106: =IF(B105>$C$18,"",IF(COUNTIF(Feriados!$A$2:$B$17,EDATE($C$38,B105))=0,EDATE($C$38,B105),EDATE($C$38,B105)+VLOOKUP(EDATE($C$38,B105),Feriados!$A$2:$B$17,2,FALSE))) ->  | X106: 0 | Y106: 0
B107: 70 | F107: =IF(B106>$C$18,"",IF(COUNTIF(Feriados!$A$2:$B$17,EDATE($C$38,B106))=0,EDATE($C$38,B106),EDATE($C$38,B106)+VLOOKUP(EDATE($C$38,B106),Feriados!$A$2:$B$17,2,FALSE))) ->  | X107: 0 | Y107: 0
B108: 71 | F108: =IF(B107>$C$18,"",IF(COUNTIF(Feriados!$A$2:$B$17,EDATE($C$38,B107))=0,EDATE($C$38,B107),EDATE($C$38,B107)+VLOOKUP(EDATE($C$38,B107),Feriados!$A$2:$B$17,2,FALSE))) ->  | X108: 0 | Y108: 0
B109: 72 | F109: =IF(B108>$C$18,"",IF(COUNTIF(Feriados!$A$2:$B$17,EDATE($C$38,B108))=0,EDATE($C$38,B108),EDATE($C$38,B108)+VLOOKUP(EDATE($C$38,B108),Feriados!$A$2:$B$17,2,FALSE))) ->  | X109: 0 | Y109: 0
B110: 73 | F110: =IF(B109>$C$18,"",IF(COUNTIF(Feriados!$A$2:$B$17,EDATE($C$38,B109))=0,EDATE($C$38,B109),EDATE($C$38,B109)+VLOOKUP(EDATE($C$38,B109),Feriados!$A$2:$B$17,2,FALSE))) ->  | X110: 0 | Y110: 0
B111: 74 | F111: =IF(B110>$C$18,"",IF(COUNTIF(Feriados!$A$2:$B$17,EDATE($C$38,B110))=0,EDATE($C$38,B110),EDATE($C$38,B110)+VLOOKUP(EDATE($C$38,B110),Feriados!$A$2:$B$17,2,FALSE))) ->  | X111: 0 | Y111: 0
B112: 75 | F112: =IF(B111>$C$18,"",IF(COUNTIF(Feriados!$A$2:$B$17,EDATE($C$38,B111))=0,EDATE($C$38,B111),EDATE($C$38,B111)+VLOOKUP(EDATE($C$38,B111),Feriados!$A$2:$B$17,2,FALSE))) ->  | X112: 0 | Y112: 0
B113: 76 | F113: =IF(B112>$C$18,"",IF(COUNTIF(Feriados!$A$2:$B$17,EDATE($C$38,B112))=0,EDATE($C$38,B112),EDATE($C$38,B112)+VLOOKUP(EDATE($C$38,B112),Feriados!$A$2:$B$17,2,FALSE))) ->  | X113: 0 | Y113: 0
B114: 77 | F114: =IF(B113>$C$18,"",IF(COUNTIF(Feriados!$A$2:$B$17,EDATE($C$38,B113))=0,EDATE($C$38,B113),EDATE($C$38,B113)+VLOOKUP(EDATE($C$38,B113),Feriados!$A$2:$B$17,2,FALSE))) ->  | X114: 0 | Y114: 0
B115: 78 | F115: =IF(B114>$C$18,"",IF(COUNTIF(Feriados!$A$2:$B$17,EDATE($C$38,B114))=0,EDATE($C$38,B114),EDATE($C$38,B114)+VLOOKUP(EDATE($C$38,B114),Feriados!$A$2:$B$17,2,FALSE))) ->  | X115: 0 | Y115: 0
B116: 79 | F116: =IF(B115>$C$18,"",IF(COUNTIF(Feriados!$A$2:$B$17,EDATE($C$38,B115))=0,EDATE($C$38,B115),EDATE($C$38,B115)+VLOOKUP(EDATE($C$38,B115),Feriados!$A$2:$B$17,2,FALSE))) ->  | X116: 0 | Y116: 0
B117: 80 | F117: =IF(B116>$C$18,"",IF(COUNTIF(Feriados!$A$2:$B$17,EDATE($C$38,B116))=0,EDATE($C$38,B116),EDATE($C$38,B116)+VLOOKUP(EDATE($C$38,B116),Feriados!$A$2:$B$17,2,FALSE))) ->  | X117: 0 | Y117: 0
B118: 81 | F118: =IF(B117>$C$18,"",IF(COUNTIF(Feriados!$A$2:$B$17,EDATE($C$38,B117))=0,EDATE($C$38,B117),EDATE($C$38,B117)+VLOOKUP(EDATE($C$38,B117),Feriados!$A$2:$B$17,2,FALSE))) ->  | X118: 0 | Y118: 0
B119: 82 | F119: =IF(B118>$C$18,"",IF(COUNTIF(Feriados!$A$2:$B$17,EDATE($C$38,B118))=0,EDATE($C$38,B118),EDATE($C$38,B118)+VLOOKUP(EDATE($C$38,B118),Feriados!$A$2:$B$17,2,FALSE))) ->  | X119: 0 | Y119: 0
B120: 83 | F120: =IF(B119>$C$18,"",IF(COUNTIF(Feriados!$A$2:$B$17,EDATE($C$38,B119))=0,EDATE($C$38,B119),EDATE($C$38,B119)+VLOOKUP(EDATE($C$38,B119),Feriados!$A$2:$B$17,2,FALSE))) ->  | X120: 0 | Y120: 0
B121: 84 | F121: =IF(B120>$C$18,"",IF(COUNTIF(Feriados!$A$2:$B$17,EDATE($C$38,B120))=0,EDATE($C$38,B120),EDATE($C$38,B120)+VLOOKUP(EDATE($C$38,B120),Feriados!$A$2:$B$17,2,FALSE))) ->  | X121: 0 | Y121: 0
B122: 85 | F122: =IF(B121>$C$18,"",IF(COUNTIF(Feriados!$A$2:$B$17,EDATE($C$38,B121))=0,EDATE($C$38,B121),EDATE($C$38,B121)+VLOOKUP(EDATE($C$38,B121),Feriados!$A$2:$B$17,2,FALSE))) ->  | X122: 0 | Y122: 0
B123: 86 | F123: =IF(B122>$C$18,"",IF(COUNTIF(Feriados!$A$2:$B$17,EDATE($C$38,B122))=0,EDATE($C$38,B122),EDATE($C$38,B122)+VLOOKUP(EDATE($C$38,B122),Feriados!$A$2:$B$17,2,FALSE))) ->  | X123: 0 | Y123: 0
B124: 87 | F124: =IF(B123>$C$18,"",IF(COUNTIF(Feriados!$A$2:$B$17,EDATE($C$38,B123))=0,EDATE($C$38,B123),EDATE($C$38,B123)+VLOOKUP(EDATE($C$38,B123),Feriados!$A$2:$B$17,2,FALSE))) ->  | X124: 0 | Y124: 0
B125: 88 | F125: =IF(B124>$C$18,"",IF(COUNTIF(Feriados!$A$2:$B$17,EDATE($C$38,B124))=0,EDATE($C$38,B124),EDATE($C$38,B124)+VLOOKUP(EDATE($C$38,B124),Feriados!$A$2:$B$17,2,FALSE))) ->  | X125: 0 | Y125: 0
B126: 89 | F126: =IF(B125>$C$18,"",IF(COUNTIF(Feriados!$A$2:$B$17,EDATE($C$38,B125))=0,EDATE($C$38,B125),EDATE($C$38,B125)+VLOOKUP(EDATE($C$38,B125),Feriados!$A$2:$B$17,2,FALSE))) ->  | X126: 0 | Y126: 0
B127: 90 | F127: =IF(B126>$C$18,"",IF(COUNTIF(Feriados!$A$2:$B$17,EDATE($C$38,B126))=0,EDATE($C$38,B126),EDATE($C$38,B126)+VLOOKUP(EDATE($C$38,B126),Feriados!$A$2:$B$17,2,FALSE))) ->  | X127: 0 | Y127: 0
B128: 91 | F128: =IF(B127>$C$18,"",IF(COUNTIF(Feriados!$A$2:$B$17,EDATE($C$38,B127))=0,EDATE($C$38,B127),EDATE($C$38,B127)+VLOOKUP(EDATE($C$38,B127),Feriados!$A$2:$B$17,2,FALSE))) ->  | X128: 0 | Y128: 0
B129: 92 | F129: =IF(B128>$C$18,"",IF(COUNTIF(Feriados!$A$2:$B$17,EDATE($C$38,B128))=0,EDATE($C$38,B128),EDATE($C$38,B128)+VLOOKUP(EDATE($C$38,B128),Feriados!$A$2:$B$17,2,FALSE))) ->  | X129: 0 | Y129: 0
B130: 93 | F130: =IF(B129>$C$18,"",IF(COUNTIF(Feriados!$A$2:$B$17,EDATE($C$38,B129))=0,EDATE($C$38,B129),EDATE($C$38,B129)+VLOOKUP(EDATE($C$38,B129),Feriados!$A$2:$B$17,2,FALSE))) ->  | X130: 0 | Y130: 0
B131: 94 | F131: =IF(B130>$C$18,"",IF(COUNTIF(Feriados!$A$2:$B$17,EDATE($C$38,B130))=0,EDATE($C$38,B130),EDATE($C$38,B130)+VLOOKUP(EDATE($C$38,B130),Feriados!$A$2:$B$17,2,FALSE))) ->  | X131: 0 | Y131: 0
B132: 95 | F132: =IF(B131>$C$18,"",IF(COUNTIF(Feriados!$A$2:$B$17,EDATE($C$38,B131))=0,EDATE($C$38,B131),EDATE($C$38,B131)+VLOOKUP(EDATE($C$38,B131),Feriados!$A$2:$B$17,2,FALSE))) ->  | X132: 0 | Y132: 0
B133: 96 | F133: =IF(B132>$C$18,"",IF(COUNTIF(Feriados!$A$2:$B$17,EDATE($C$38,B132))=0,EDATE($C$38,B132),EDATE($C$38,B132)+VLOOKUP(EDATE($C$38,B132),Feriados!$A$2:$B$17,2,FALSE))) ->  | X133: 0 | Y133: 0
B134: 97 | F134: =IF(B133>$C$18,"",IF(COUNTIF(Feriados!$A$2:$B$17,EDATE($C$38,B133))=0,EDATE($C$38,B133),EDATE($C$38,B133)+VLOOKUP(EDATE($C$38,B133),Feriados!$A$2:$B$17,2,FALSE))) ->  | X134: 0 | Y134: 0
B135: 98 | F135: =IF(B134>$C$18,"",IF(COUNTIF(Feriados!$A$2:$B$17,EDATE($C$38,B134))=0,EDATE($C$38,B134),EDATE($C$38,B134)+VLOOKUP(EDATE($C$38,B134),Feriados!$A$2:$B$17,2,FALSE))) ->  | X135: 0 | Y135: 0
B136: 99 | F136: =IF(B135>$C$18,"",IF(COUNTIF(Feriados!$A$2:$B$17,EDATE($C$38,B135))=0,EDATE($C$38,B135),EDATE($C$38,B135)+VLOOKUP(EDATE($C$38,B135),Feriados!$A$2:$B$17,2,FALSE))) ->  | X136: 0 | Y136: 0
B137: 100 | F137: =IF(B136>$C$18,"",IF(COUNTIF(Feriados!$A$2:$B$17,EDATE($C$38,B136))=0,EDATE($C$38,B136),EDATE($C$38,B136)+VLOOKUP(EDATE($C$38,B136),Feriados!$A$2:$B$17,2,FALSE))) ->  | X137: 0 | Y137: 0
B138: 101 | F138: =IF(B137>$C$18,"",IF(COUNTIF(Feriados!$A$2:$B$17,EDATE($C$38,B137))=0,EDATE($C$38,B137),EDATE($C$38,B137)+VLOOKUP(EDATE($C$38,B137),Feriados!$A$2:$B$17,2,FALSE))) ->  | X138: 0 | Y138: 0
B139: 102 | F139: =IF(B138>$C$18,"",IF(COUNTIF(Feriados!$A$2:$B$17,EDATE($C$38,B138))=0,EDATE($C$38,B138),EDATE($C$38,B138)+VLOOKUP(EDATE($C$38,B138),Feriados!$A$2:$B$17,2,FALSE))) ->  | X139: 0 | Y139: 0
B140: 103 | F140: =IF(B139>$C$18,"",IF(COUNTIF(Feriados!$A$2:$B$17,EDATE($C$38,B139))=0,EDATE($C$38,B139),EDATE($C$38,B139)+VLOOKUP(EDATE($C$38,B139),Feriados!$A$2:$B$17,2,FALSE))) ->  | X140: 0 | Y140: 0
B141: 104 | F141: =IF(B140>$C$18,"",IF(COUNTIF(Feriados!$A$2:$B$17,EDATE($C$38,B140))=0,EDATE($C$38,B140),EDATE($C$38,B140)+VLOOKUP(EDATE($C$38,B140),Feriados!$A$2:$B$17,2,FALSE))) ->  | X141: 0 | Y141: 0
B142: 105 | F142: =IF(B141>$C$18,"",IF(COUNTIF(Feriados!$A$2:$B$17,EDATE($C$38,B141))=0,EDATE($C$38,B141),EDATE($C$38,B141)+VLOOKUP(EDATE($C$38,B141),Feriados!$A$2:$B$17,2,FALSE))) ->  | X142: 0 | Y142: 0
B143: 106 | F143: =IF(B142>$C$18,"",IF(COUNTIF(Feriados!$A$2:$B$17,EDATE($C$38,B142))=0,EDATE($C$38,B142),EDATE($C$38,B142)+VLOOKUP(EDATE($C$38,B142),Feriados!$A$2:$B$17,2,FALSE))) ->  | X143: 0 | Y143: 0
B144: 107 | F144: =IF(B143>$C$18,"",IF(COUNTIF(Feriados!$A$2:$B$17,EDATE($C$38,B143))=0,EDATE($C$38,B143),EDATE($C$38,B143)+VLOOKUP(EDATE($C$38,B143),Feriados!$A$2:$B$17,2,FALSE))) ->  | X144: 0 | Y144: 0
B145: 108 | F145: =IF(B144>$C$18,"",IF(COUNTIF(Feriados!$A$2:$B$17,EDATE($C$38,B144))=0,EDATE($C$38,B144),EDATE($C$38,B144)+VLOOKUP(EDATE($C$38,B144),Feriados!$A$2:$B$17,2,FALSE))) ->  | X145: 0 | Y145: 0
B146: 109 | F146: =IF(B145>$C$18,"",IF(COUNTIF(Feriados!$A$2:$B$17,EDATE($C$38,B145))=0,EDATE($C$38,B145),EDATE($C$38,B145)+VLOOKUP(EDATE($C$38,B145),Feriados!$A$2:$B$17,2,FALSE))) ->  | X146: 0 | Y146: 0
B147: 110 | F147: =IF(B146>$C$18,"",IF(COUNTIF(Feriados!$A$2:$B$17,EDATE($C$38,B146))=0,EDATE($C$38,B146),EDATE($C$38,B146)+VLOOKUP(EDATE($C$38,B146),Feriados!$A$2:$B$17,2,FALSE))) ->  | X147: 0 | Y147: 0
B148: 111 | F148: =IF(B147>$C$18,"",IF(COUNTIF(Feriados!$A$2:$B$17,EDATE($C$38,B147))=0,EDATE($C$38,B147),EDATE($C$38,B147)+VLOOKUP(EDATE($C$38,B147),Feriados!$A$2:$B$17,2,FALSE))) ->  | X148: 0 | Y148: 0
B149: 112 | F149: =IF(B148>$C$18,"",IF(COUNTIF(Feriados!$A$2:$B$17,EDATE($C$38,B148))=0,EDATE($C$38,B148),EDATE($C$38,B148)+VLOOKUP(EDATE($C$38,B148),Feriados!$A$2:$B$17,2,FALSE))) ->  | X149: 0 | Y149: 0
B150: 113 | F150: =IF(B149>$C$18,"",IF(COUNTIF(Feriados!$A$2:$B$17,EDATE($C$38,B149))=0,EDATE($C$38,B149),EDATE($C$38,B149)+VLOOKUP(EDATE($C$38,B149),Feriados!$A$2:$B$17,2,FALSE))) ->  | X150: 0 | Y150: 0
B151: 114 | F151: =IF(B150>$C$18,"",IF(COUNTIF(Feriados!$A$2:$B$17,EDATE($C$38,B150))=0,EDATE($C$38,B150),EDATE($C$38,B150)+VLOOKUP(EDATE($C$38,B150),Feriados!$A$2:$B$17,2,FALSE))) ->  | X151: 0 | Y151: 0
B152: 115 | F152: =IF(B151>$C$18,"",IF(COUNTIF(Feriados!$A$2:$B$17,EDATE($C$38,B151))=0,EDATE($C$38,B151),EDATE($C$38,B151)+VLOOKUP(EDATE($C$38,B151),Feriados!$A$2:$B$17,2,FALSE))) ->  | X152: 0 | Y152: 0
B153: 116 | F153: =IF(B152>$C$18,"",IF(COUNTIF(Feriados!$A$2:$B$17,EDATE($C$38,B152))=0,EDATE($C$38,B152),EDATE($C$38,B152)+VLOOKUP(EDATE($C$38,B152),Feriados!$A$2:$B$17,2,FALSE))) ->  | X153: 0 | Y153: 0
B154: 117 | F154: =IF(B153>$C$18,"",IF(COUNTIF(Feriados!$A$2:$B$17,EDATE($C$38,B153))=0,EDATE($C$38,B153),EDATE($C$38,B153)+VLOOKUP(EDATE($C$38,B153),Feriados!$A$2:$B$17,2,FALSE))) ->  | X154: 0 | Y154: 0
B155: 118 | F155: =IF(B154>$C$18,"",IF(COUNTIF(Feriados!$A$2:$B$17,EDATE($C$38,B154))=0,EDATE($C$38,B154),EDATE($C$38,B154)+VLOOKUP(EDATE($C$38,B154),Feriados!$A$2:$B$17,2,FALSE))) ->  | X155: 0 | Y155: 0
B156: 119 | F156: =IF(B155>$C$18,"",IF(COUNTIF(Feriados!$A$2:$B$17,EDATE($C$38,B155))=0,EDATE($C$38,B155),EDATE($C$38,B155)+VLOOKUP(EDATE($C$38,B155),Feriados!$A$2:$B$17,2,FALSE))) ->  | X156: 0 | Y156: 0
B157: 120 | F157: =IF(B156>$C$18,"",IF(COUNTIF(Feriados!$A$2:$B$17,EDATE($C$38,B156))=0,EDATE($C$38,B156),EDATE($C$38,B156)+VLOOKUP(EDATE($C$38,B156),Feriados!$A$2:$B$17,2,FALSE))) ->  | X157: 0 | Y157: 0
B158: 121 | F158: =IF(B157>$C$18,"",IF(COUNTIF(Feriados!$A$2:$B$17,EDATE($C$38,B157))=0,EDATE($C$38,B157),EDATE($C$38,B157)+VLOOKUP(EDATE($C$38,B157),Feriados!$A$2:$B$17,2,FALSE))) ->  | X158: 0 | Y158: 0
B159: 122 | F159: =IF(B158>$C$18,"",IF(COUNTIF(Feriados!$A$2:$B$17,EDATE($C$38,B158))=0,EDATE($C$38,B158),EDATE($C$38,B158)+VLOOKUP(EDATE($C$38,B158),Feriados!$A$2:$B$17,2,FALSE))) ->  | X159: 0 | Y159: 0
B160: 123 | F160: =IF(B159>$C$18,"",IF(COUNTIF(Feriados!$A$2:$B$17,EDATE($C$38,B159))=0,EDATE($C$38,B159),EDATE($C$38,B159)+VLOOKUP(EDATE($C$38,B159),Feriados!$A$2:$B$17,2,FALSE))) ->  | X160: 0 | Y160: 0
B161: 124 | F161: =IF(B160>$C$18,"",IF(COUNTIF(Feriados!$A$2:$B$17,EDATE($C$38,B160))=0,EDATE($C$38,B160),EDATE($C$38,B160)+VLOOKUP(EDATE($C$38,B160),Feriados!$A$2:$B$17,2,FALSE))) ->  | X161: 0 | Y161: 0
B162: 125 | F162: =IF(B161>$C$18,"",IF(COUNTIF(Feriados!$A$2:$B$17,EDATE($C$38,B161))=0,EDATE($C$38,B161),EDATE($C$38,B161)+VLOOKUP(EDATE($C$38,B161),Feriados!$A$2:$B$17,2,FALSE))) ->  | X162: 0 | Y162: 0
B163: 126 | F163: =IF(B162>$C$18,"",IF(COUNTIF(Feriados!$A$2:$B$17,EDATE($C$38,B162))=0,EDATE($C$38,B162),EDATE($C$38,B162)+VLOOKUP(EDATE($C$38,B162),Feriados!$A$2:$B$17,2,FALSE))) ->  | X163: 0 | Y163: 0
B164: 127 | F164: =IF(B163>$C$18,"",IF(COUNTIF(Feriados!$A$2:$B$17,EDATE($C$38,B163))=0,EDATE($C$38,B163),EDATE($C$38,B163)+VLOOKUP(EDATE($C$38,B163),Feriados!$A$2:$B$17,2,FALSE))) ->  | X164: 0 | Y164: 0
B165: 128 | F165: =IF(B164>$C$18,"",IF(COUNTIF(Feriados!$A$2:$B$17,EDATE($C$38,B164))=0,EDATE($C$38,B164),EDATE($C$38,B164)+VLOOKUP(EDATE($C$38,B164),Feriados!$A$2:$B$17,2,FALSE))) ->  | X165: 0 | Y165: 0
B166: 129 | D166: =IF(B166<=$C$18,WEEKDAY(C166,2),"") ->  | F166: =IF(B165>$C$18,"",IF(COUNTIF(Feriados!$A$2:$B$17,EDATE($C$38,B165))=0,EDATE($C$38,B165),EDATE($C$38,B165)+VLOOKUP(EDATE($C$38,B165),Feriados!$A$2:$B$17,2,FALSE))) ->  | J166: =IF(B166>C$18,"",O166-N166-M166-L166-K166) ->  | K166: =IF(B166>C$18,"",((1+C$25)^(G166/360)-1)*I166) ->  | M166: =IF(B166>C$18,"",C$27*C$28) ->  | N166: =IF(B166>C$18,"",C$29) ->  | O166: =IF(B166>C$18,"",IF(B166=C$18,I166+K166+L166+M166+N166,IF(AND(C$23=2,MONTH(E166)=7),2*C$30,IF(AND(C$24=2,MONTH(E166)=12),2*C$30,C$30)))) ->  | P166: =IF(B166>C$18,"",I166-J166) ->  | Q166: =IFERROR(IF(AND(MONTH(E166)=7,C$23=2),2/(1+C$26)^(H166/360),IF(AND(MONTH(E166)=12,C$24=2),2/(1+C$26)^(H166/360),1/(1+C$26)^(H166/360))),"") ->  | R166: =IFERROR(1/(1+C$26)^(H166/360),"") ->  | U166: =H166 ->  | V166: =IFERROR((1+C$32)^(U166/360),"") ->  | W166: =IFERROR(ROUND(T166/V166,2),"") ->  | X166: 0 | Y166: 0
B167: 130 | E167: =IF(D167=7,C167+1,C167) ->  | F167: =IF(B166>$C$18,"",IF(COUNTIF(Feriados!$A$2:$B$17,EDATE($C$38,B166))=0,EDATE($C$38,B166),EDATE($C$38,B166)+VLOOKUP(EDATE($C$38,B166),Feriados!$A$2:$B$17,2,FALSE))) ->  | G167: =IF(B167>C$18,"",E167-E166) ->  | H167: =IFERROR(G167+H166,"") ->  | I167: =IF(B167>C$18,"",P166) ->  | L167: =IF(B167>C$18,"",((1+C$13)^(G167/30)-1)*I167) ->  | T167: =IFERROR(J167+K167+L167+M167+N167,"") ->  | X167: =IF(O167="",0,L167/((1+$I$9)^B167)) -> 0 | Y167: 0
B168: 131 | C168: =IF(B168>$C$18,"",IF(WEEKDAY(F168,2)=7,F168+1,F168)) ->  | F168: =IF(B167>$C$18,"",IF(COUNTIF(Feriados!$A$2:$B$17,EDATE($C$38,B167))=0,EDATE($C$38,B167),EDATE($C$38,B167)+VLOOKUP(EDATE($C$38,B167),Feriados!$A$2:$B$17,2,FALSE))) ->  | X168: 0 | Y168: =IF(O168="",0,L168/((1+$Q$30)^B168)) -> 0
B169: 132 | F169: =IF(B168>$C$18,"",IF(COUNTIF(Feriados!$A$2:$B$17,EDATE($C$38,B168))=0,EDATE($C$38,B168),EDATE($C$38,B168)+VLOOKUP(EDATE($C$38,B168),Feriados!$A$2:$B$17,2,FALSE))) ->  | X169: 0 | Y169: 0
B170: 133 | F170: =IF(B169>$C$18,"",IF(COUNTIF(Feriados!$A$2:$B$17,EDATE($C$38,B169))=0,EDATE($C$38,B169),EDATE($C$38,B169)+VLOOKUP(EDATE($C$38,B169),Feriados!$A$2:$B$17,2,FALSE))) ->  | X170: 0 | Y170: 0
B171: 134 | F171: =IF(B170>$C$18,"",IF(COUNTIF(Feriados!$A$2:$B$17,EDATE($C$38,B170))=0,EDATE($C$38,B170),EDATE($C$38,B170)+VLOOKUP(EDATE($C$38,B170),Feriados!$A$2:$B$17,2,FALSE))) ->  | X171: 0 | Y171: 0
B172: 135 | F172: =IF(B171>$C$18,"",IF(COUNTIF(Feriados!$A$2:$B$17,EDATE($C$38,B171))=0,EDATE($C$38,B171),EDATE($C$38,B171)+VLOOKUP(EDATE($C$38,B171),Feriados!$A$2:$B$17,2,FALSE))) ->  | X172: 0 | Y172: 0
B173: 136 | F173: =IF(B172>$C$18,"",IF(COUNTIF(Feriados!$A$2:$B$17,EDATE($C$38,B172))=0,EDATE($C$38,B172),EDATE($C$38,B172)+VLOOKUP(EDATE($C$38,B172),Feriados!$A$2:$B$17,2,FALSE))) ->  | X173: 0 | Y173: 0
B174: 137 | F174: =IF(B173>$C$18,"",IF(COUNTIF(Feriados!$A$2:$B$17,EDATE($C$38,B173))=0,EDATE($C$38,B173),EDATE($C$38,B173)+VLOOKUP(EDATE($C$38,B173),Feriados!$A$2:$B$17,2,FALSE))) ->  | X174: 0 | Y174: 0
B175: 138 | F175: =IF(B174>$C$18,"",IF(COUNTIF(Feriados!$A$2:$B$17,EDATE($C$38,B174))=0,EDATE($C$38,B174),EDATE($C$38,B174)+VLOOKUP(EDATE($C$38,B174),Feriados!$A$2:$B$17,2,FALSE))) ->  | X175: 0 | Y175: 0
B176: 139 | F176: =IF(B175>$C$18,"",IF(COUNTIF(Feriados!$A$2:$B$17,EDATE($C$38,B175))=0,EDATE($C$38,B175),EDATE($C$38,B175)+VLOOKUP(EDATE($C$38,B175),Feriados!$A$2:$B$17,2,FALSE))) ->  | X176: 0 | Y176: 0
B177: 140 | F177: =IF(B176>$C$18,"",IF(COUNTIF(Feriados!$A$2:$B$17,EDATE($C$38,B176))=0,EDATE($C$38,B176),EDATE($C$38,B176)+VLOOKUP(EDATE($C$38,B176),Feriados!$A$2:$B$17,2,FALSE))) ->  | X177: 0 | Y177: 0
B178: 141 | F178: =IF(B177>$C$18,"",IF(COUNTIF(Feriados!$A$2:$B$17,EDATE($C$38,B177))=0,EDATE($C$38,B177),EDATE($C$38,B177)+VLOOKUP(EDATE($C$38,B177),Feriados!$A$2:$B$17,2,FALSE))) ->  | X178: 0 | Y178: 0
B179: 142 | F179: =IF(B178>$C$18,"",IF(COUNTIF(Feriados!$A$2:$B$17,EDATE($C$38,B178))=0,EDATE($C$38,B178),EDATE($C$38,B178)+VLOOKUP(EDATE($C$38,B178),Feriados!$A$2:$B$17,2,FALSE))) ->  | X179: 0 | Y179: 0
B180: 143 | F180: =IF(B179>$C$18,"",IF(COUNTIF(Feriados!$A$2:$B$17,EDATE($C$38,B179))=0,EDATE($C$38,B179),EDATE($C$38,B179)+VLOOKUP(EDATE($C$38,B179),Feriados!$A$2:$B$17,2,FALSE))) ->  | X180: 0 | Y180: 0
B181: 144 | F181: =IF(B180>$C$18,"",IF(COUNTIF(Feriados!$A$2:$B$17,EDATE($C$38,B180))=0,EDATE($C$38,B180),EDATE($C$38,B180)+VLOOKUP(EDATE($C$38,B180),Feriados!$A$2:$B$17,2,FALSE))) ->  | X181: 0 | Y181: 0
B182: 145 | F182: =IF(B181>$C$18,"",IF(COUNTIF(Feriados!$A$2:$B$17,EDATE($C$38,B181))=0,EDATE($C$38,B181),EDATE($C$38,B181)+VLOOKUP(EDATE($C$38,B181),Feriados!$A$2:$B$17,2,FALSE))) ->  | X182: 0 | Y182: 0
B183: 146 | F183: =IF(B182>$C$18,"",IF(COUNTIF(Feriados!$A$2:$B$17,EDATE($C$38,B182))=0,EDATE($C$38,B182),EDATE($C$38,B182)+VLOOKUP(EDATE($C$38,B182),Feriados!$A$2:$B$17,2,FALSE))) ->  | X183: 0 | Y183: 0
B184: 147 | F184: =IF(B183>$C$18,"",IF(COUNTIF(Feriados!$A$2:$B$17,EDATE($C$38,B183))=0,EDATE($C$38,B183),EDATE($C$38,B183)+VLOOKUP(EDATE($C$38,B183),Feriados!$A$2:$B$17,2,FALSE))) ->  | X184: 0 | Y184: 0
B185: 148 | F185: =IF(B184>$C$18,"",IF(COUNTIF(Feriados!$A$2:$B$17,EDATE($C$38,B184))=0,EDATE($C$38,B184),EDATE($C$38,B184)+VLOOKUP(EDATE($C$38,B184),Feriados!$A$2:$B$17,2,FALSE))) ->  | X185: 0 | Y185: 0
B186: 149 | F186: =IF(B185>$C$18,"",IF(COUNTIF(Feriados!$A$2:$B$17,EDATE($C$38,B185))=0,EDATE($C$38,B185),EDATE($C$38,B185)+VLOOKUP(EDATE($C$38,B185),Feriados!$A$2:$B$17,2,FALSE))) ->  | X186: 0 | Y186: 0
B187: 150 | F187: =IF(B186>$C$18,"",IF(COUNTIF(Feriados!$A$2:$B$17,EDATE($C$38,B186))=0,EDATE($C$38,B186),EDATE($C$38,B186)+VLOOKUP(EDATE($C$38,B186),Feriados!$A$2:$B$17,2,FALSE))) ->  | X187: 0 | Y187: 0
B188: 151 | F188: =IF(B187>$C$18,"",IF(COUNTIF(Feriados!$A$2:$B$17,EDATE($C$38,B187))=0,EDATE($C$38,B187),EDATE($C$38,B187)+VLOOKUP(EDATE($C$38,B187),Feriados!$A$2:$B$17,2,FALSE))) ->  | X188: 0 | Y188: 0
B189: 152 | F189: =IF(B188>$C$18,"",IF(COUNTIF(Feriados!$A$2:$B$17,EDATE($C$38,B188))=0,EDATE($C$38,B188),EDATE($C$38,B188)+VLOOKUP(EDATE($C$38,B188),Feriados!$A$2:$B$17,2,FALSE))) ->  | X189: 0 | Y189: 0
B190: 153 | F190: =IF(B189>$C$18,"",IF(COUNTIF(Feriados!$A$2:$B$17,EDATE($C$38,B189))=0,EDATE($C$38,B189),EDATE($C$38,B189)+VLOOKUP(EDATE($C$38,B189),Feriados!$A$2:$B$17,2,FALSE))) ->  | X190: 0 | Y190: 0
B191: 154 | F191: =IF(B190>$C$18,"",IF(COUNTIF(Feriados!$A$2:$B$17,EDATE($C$38,B190))=0,EDATE($C$38,B190),EDATE($C$38,B190)+VLOOKUP(EDATE($C$38,B190),Feriados!$A$2:$B$17,2,FALSE))) ->  | X191: 0 | Y191: 0
B192: 155 | F192: =IF(B191>$C$18,"",IF(COUNTIF(Feriados!$A$2:$B$17,EDATE($C$38,B191))=0,EDATE($C$38,B191),EDATE($C$38,B191)+VLOOKUP(EDATE($C$38,B191),Feriados!$A$2:$B$17,2,FALSE))) ->  | X192: 0 | Y192: 0
B193: 156 | F193: =IF(B192>$C$18,"",IF(COUNTIF(Feriados!$A$2:$B$17,EDATE($C$38,B192))=0,EDATE($C$38,B192),EDATE($C$38,B192)+VLOOKUP(EDATE($C$38,B192),Feriados!$A$2:$B$17,2,FALSE))) ->  | X193: 0 | Y193: 0
B194: 157 | F194: =IF(B193>$C$18,"",IF(COUNTIF(Feriados!$A$2:$B$17,EDATE($C$38,B193))=0,EDATE($C$38,B193),EDATE($C$38,B193)+VLOOKUP(EDATE($C$38,B193),Feriados!$A$2:$B$17,2,FALSE))) ->  | X194: 0 | Y194: 0
B195: 158 | F195: =IF(B194>$C$18,"",IF(COUNTIF(Feriados!$A$2:$B$17,EDATE($C$38,B194))=0,EDATE($C$38,B194),EDATE($C$38,B194)+VLOOKUP(EDATE($C$38,B194),Feriados!$A$2:$B$17,2,FALSE))) ->  | X195: 0 | Y195: 0
B196: 159 | F196: =IF(B195>$C$18,"",IF(COUNTIF(Feriados!$A$2:$B$17,EDATE($C$38,B195))=0,EDATE($C$38,B195),EDATE($C$38,B195)+VLOOKUP(EDATE($C$38,B195),Feriados!$A$2:$B$17,2,FALSE))) ->  | X196: 0 | Y196: 0
B197: 160 | F197: =IF(B196>$C$18,"",IF(COUNTIF(Feriados!$A$2:$B$17,EDATE($C$38,B196))=0,EDATE($C$38,B196),EDATE($C$38,B196)+VLOOKUP(EDATE($C$38,B196),Feriados!$A$2:$B$17,2,FALSE))) ->  | X197: 0 | Y197: 0
B198: 161 | F198: =IF(B197>$C$18,"",IF(COUNTIF(Feriados!$A$2:$B$17,EDATE($C$38,B197))=0,EDATE($C$38,B197),EDATE($C$38,B197)+VLOOKUP(EDATE($C$38,B197),Feriados!$A$2:$B$17,2,FALSE))) ->  | X198: 0 | Y198: 0
B199: 162 | F199: =IF(B198>$C$18,"",IF(COUNTIF(Feriados!$A$2:$B$17,EDATE($C$38,B198))=0,EDATE($C$38,B198),EDATE($C$38,B198)+VLOOKUP(EDATE($C$38,B198),Feriados!$A$2:$B$17,2,FALSE))) ->  | X199: 0 | Y199: 0
B200: 163 | F200: =IF(B199>$C$18,"",IF(COUNTIF(Feriados!$A$2:$B$17,EDATE($C$38,B199))=0,EDATE($C$38,B199),EDATE($C$38,B199)+VLOOKUP(EDATE($C$38,B199),Feriados!$A$2:$B$17,2,FALSE))) ->  | X200: 0 | Y200: 0
B201: 164 | F201: =IF(B200>$C$18,"",IF(COUNTIF(Feriados!$A$2:$B$17,EDATE($C$38,B200))=0,EDATE($C$38,B200),EDATE($C$38,B200)+VLOOKUP(EDATE($C$38,B200),Feriados!$A$2:$B$17,2,FALSE))) ->  | X201: 0 | Y201: 0
B202: 165 | F202: =IF(B201>$C$18,"",IF(COUNTIF(Feriados!$A$2:$B$17,EDATE($C$38,B201))=0,EDATE($C$38,B201),EDATE($C$38,B201)+VLOOKUP(EDATE($C$38,B201),Feriados!$A$2:$B$17,2,FALSE))) ->  | X202: 0 | Y202: 0
B203: 166 | F203: =IF(B202>$C$18,"",IF(COUNTIF(Feriados!$A$2:$B$17,EDATE($C$38,B202))=0,EDATE($C$38,B202),EDATE($C$38,B202)+VLOOKUP(EDATE($C$38,B202),Feriados!$A$2:$B$17,2,FALSE))) ->  | X203: 0 | Y203: 0
B204: 167 | F204: =IF(B203>$C$18,"",IF(COUNTIF(Feriados!$A$2:$B$17,EDATE($C$38,B203))=0,EDATE($C$38,B203),EDATE($C$38,B203)+VLOOKUP(EDATE($C$38,B203),Feriados!$A$2:$B$17,2,FALSE))) ->  | X204: 0 | Y204: 0
B205: 168 | F205: =IF(B204>$C$18,"",IF(COUNTIF(Feriados!$A$2:$B$17,EDATE($C$38,B204))=0,EDATE($C$38,B204),EDATE($C$38,B204)+VLOOKUP(EDATE($C$38,B204),Feriados!$A$2:$B$17,2,FALSE))) ->  | X205: 0 | Y205: 0
B206: 169 | F206: =IF(B205>$C$18,"",IF(COUNTIF(Feriados!$A$2:$B$17,EDATE($C$38,B205))=0,EDATE($C$38,B205),EDATE($C$38,B205)+VLOOKUP(EDATE($C$38,B205),Feriados!$A$2:$B$17,2,FALSE))) ->  | X206: 0 | Y206: 0
B207: 170 | F207: =IF(B206>$C$18,"",IF(COUNTIF(Feriados!$A$2:$B$17,EDATE($C$38,B206))=0,EDATE($C$38,B206),EDATE($C$38,B206)+VLOOKUP(EDATE($C$38,B206),Feriados!$A$2:$B$17,2,FALSE))) ->  | X207: 0 | Y207: 0
B208: 171 | F208: =IF(B207>$C$18,"",IF(COUNTIF(Feriados!$A$2:$B$17,EDATE($C$38,B207))=0,EDATE($C$38,B207),EDATE($C$38,B207)+VLOOKUP(EDATE($C$38,B207),Feriados!$A$2:$B$17,2,FALSE))) ->  | X208: 0 | Y208: 0
... 189 more rows

Sheet TarifarioBD (hidden)
A1: TARIFA | B1: PRODUCTO | C1: TIPO_SEGURO | D1: Plazo | E1: Valor | G1: TARIFA | H1: PRODUCTO | I1: TIPO_SEGURO
A2: TARIFA TITULAR | B2: Préstamos Personales (LD ) | C2: Seguro de Vida | D2: 0-370 | E2: 0.054 | G2: TARIFA TITULAR | H2: Préstamos Personales (LD ) | I2: Seguro de Vida
A3: TARIFA TITULAR | B3: Préstamos Personales (LD ) | C3: Seguro de Vida | D3: 371-553 | E3: 0.059 | I3: Seguro de Desgravamen
A4: TARIFA TITULAR | B4: Préstamos Personales (LD ) | C4: Seguro de Vida | D4: 554-736 | E4: 0.064 | I4: Seguro de Desgravamen con Devolución
A5: TARIFA TITULAR | B5: Préstamos Personales (LD ) | C5: Seguro de Vida | D5: 737-1101 | E5: 0.068
A6: TARIFA TITULAR | B6: Préstamos Personales (LD ) | C6: Seguro de Vida | D6: 1102-1466 | E6: 0.074
A7: TARIFA TITULAR | B7: Préstamos Personales (LD ) | C7: Seguro de Vida | D7: 1467-1831 | E7: 0.081
A8: TARIFA TITULAR | B8: Préstamos Personales (LD ) | C8: Seguro de Vida | D8: 1832-2257 | E8: 0.081
A9: TARIFA TITULAR | B9: Préstamos Personales (LD ) | C9: Seguro de Desgravamen | D9: 0-370 | E9: 0.008314
A10: TARIFA TITULAR | B10: Préstamos Personales (LD ) | C10: Seguro de Desgravamen | D10: 371-553 | E10: 0.006601
A11: TARIFA TITULAR | B11: Préstamos Personales (LD ) | C11: Seguro de Desgravamen | D11: 554-736 | E11: 0.005081
A12: TARIFA TITULAR | B12: Préstamos Personales (LD ) | C12: Seguro de Desgravamen | D12: 737-1101 | E12: 0.003788
A13: TARIFA TITULAR | B13: Préstamos Personales (LD ) | C13: Seguro de Desgravamen | D13: 1102-1466 | E13: 0.002942
A14: TARIFA TITULAR | B14: Préstamos Personales (LD ) | C14: Seguro de Desgravamen | D14: 1467-1831 | E14: 0.002529
A15: TARIFA TITULAR | B15: Préstamos Personales (LD ) | C15: Seguro de Desgravamen | D15: 1832-2257 | E15: 0.002046
A16: TARIFA TITULAR | B16: Préstamos Personales (LD ) | C16: Seguro de Desgravamen con Devolución | D16: 0-370 | E16: 0.010884
A17: TARIFA TITULAR | B17: Préstamos Personales (LD ) | C17: Seguro de Desgravamen con Devolución | D17: 371-553 | E17: 0.008549
A18: TARIFA TITULAR | B18: Préstamos Personales (LD ) | C18: Seguro de Desgravamen con Devolución | D18: 554-736 | E18: 0.006621
A19: TARIFA TITULAR | B19: Préstamos Personales (LD ) | C19: Seguro de Desgravamen con Devolución | D19: 737-1101 | E19: 0.004924
A20: TARIFA TITULAR | B20: Préstamos Personales (LD ) | C20: Seguro de Desgravamen con Devolución | D20: 1102-1466 | E20: 0.003832
A21: TARIFA TITULAR | B21: Préstamos Personales (LD ) | C21: Seguro de Desgravamen con Devolución | D21: 1467-1831 | E21: 0.003291
A22: TARIFA TITULAR | B22: Préstamos Personales (LD ) | C22: Seguro de Desgravamen con Devolución | D22: 1832-2257 | E22: 0.002663

Sheet CostoCapBD (hidden)
A1: TARIFA | B1: CostoCapital
A2: TARIFA TITULAR | B2: 0.002871
